Body Name,Body,Service division categorisation,Expense Type,Date paid,Transaction Reference,Net,Supplier Name,Redacted/Excluded
East Lindsey District Council,http://statistics.data.gov.uk/id/local-authority/32UC,Corporate Accounting,Internal Drainage Board Levies,03/07/13,IJ00023733,622409,LINDSEY MARSH DRAINAGE BOARD, 
East Lindsey District Council,http://statistics.data.gov.uk/id/local-authority/32UC,Economic & Tourism,Other Revenue Grants Reimbursements & Contributions (Govt),04/07/13,IJ00023700,10000,ALFORD TOWN COUNCIL, 
East Lindsey District Council,http://statistics.data.gov.uk/id/local-authority/32UC,Waste Services Manager,Tyres,04/07/13,IJ00023719,735.7,B A BUSH & SON LIMITED, 
East Lindsey District Council,http://statistics.data.gov.uk/id/local-authority/32UC,Economic & Tourism,Professional & Contractors Fees,04/07/13,IJ00023766,2658.15,SID DENNIS & SONS LTD, 
East Lindsey District Council,http://statistics.data.gov.uk/id/local-authority/32UC,TL Property,Buildings Maintenance - Responsive,04/07/13,IJ00023830,40.82,HARLITE INSTALLATIONS LTD, 
East Lindsey District Council,http://statistics.data.gov.uk/id/local-authority/32UC,TL Property,Buildings Maintenance - Responsive,04/07/13,IJ00023830,47.82,HARLITE INSTALLATIONS LTD, 
East Lindsey District Council,http://statistics.data.gov.uk/id/local-authority/32UC,TL Property,Buildings Maintenance - Responsive,04/07/13,IJ00023830,64.76,HARLITE INSTALLATIONS LTD, 
East Lindsey District Council,http://statistics.data.gov.uk/id/local-authority/32UC,TL Property,Buildings Maintenance - Responsive,04/07/13,IJ00023830,35.42,HARLITE INSTALLATIONS LTD, 
East Lindsey District Council,http://statistics.data.gov.uk/id/local-authority/32UC,TL Property,Buildings Maintenance - Responsive,04/07/13,IJ00023830,35.42,HARLITE INSTALLATIONS LTD, 
East Lindsey District Council,http://statistics.data.gov.uk/id/local-authority/32UC,TL Property,Buildings Maintenance - Responsive,04/07/13,IJ00023830,35.42,HARLITE INSTALLATIONS LTD, 
East Lindsey District Council,http://statistics.data.gov.uk/id/local-authority/32UC,TL Property,Buildings Maintenance - Responsive,04/07/13,IJ00023830,24.57,HARLITE INSTALLATIONS LTD, 
East Lindsey District Council,http://statistics.data.gov.uk/id/local-authority/32UC,TL Property,Buildings Maintenance - Responsive,04/07/13,IJ00023830,24.57,HARLITE INSTALLATIONS LTD, 
East Lindsey District Council,http://statistics.data.gov.uk/id/local-authority/32UC,TL Property,Buildings Maintenance - Responsive,04/07/13,IJ00023830,61.42,HARLITE INSTALLATIONS LTD, 
East Lindsey District Council,http://statistics.data.gov.uk/id/local-authority/32UC,TL Property,Buildings Maintenance - Responsive,04/07/13,IJ00023830,35.42,HARLITE INSTALLATIONS LTD, 
East Lindsey District Council,http://statistics.data.gov.uk/id/local-authority/32UC,TL Property,Buildings Maintenance - Responsive,04/07/13,IJ00023830,35.42,HARLITE INSTALLATIONS LTD, 
East Lindsey District Council,http://statistics.data.gov.uk/id/local-authority/32UC,TL Property,Buildings Maintenance - Responsive,04/07/13,IJ00023830,35.42,HARLITE INSTALLATIONS LTD, 
East Lindsey District Council,http://statistics.data.gov.uk/id/local-authority/32UC,TL Property,Buildings Maintenance - Responsive,04/07/13,IJ00023830,19.06,HARLITE INSTALLATIONS LTD, 
East Lindsey District Council,http://statistics.data.gov.uk/id/local-authority/32UC,TL Property,Buildings Maintenance - Responsive,04/07/13,IJ00023830,815.05,HARLITE INSTALLATIONS LTD, 
East Lindsey District Council,http://statistics.data.gov.uk/id/local-authority/32UC,Neighbourhood Services,Buildings Maintenance - Responsive,04/07/13,IJ00023830,68.7,HARLITE INSTALLATIONS LTD, 
East Lindsey District Council,http://statistics.data.gov.uk/id/local-authority/32UC,Neighbourhood Services,Buildings Maintenance - Responsive,04/07/13,IJ00023830,37.66,HARLITE INSTALLATIONS LTD, 
East Lindsey District Council,http://statistics.data.gov.uk/id/local-authority/32UC,Neighbourhood Services,Buildings Maintenance - Responsive,04/07/13,IJ00023830,68.7,HARLITE INSTALLATIONS LTD, 
East Lindsey District Council,http://statistics.data.gov.uk/id/local-authority/32UC,Neighbourhood Services,Buildings Maintenance - Responsive,04/07/13,IJ00023830,68.7,HARLITE INSTALLATIONS LTD, 
East Lindsey District Council,http://statistics.data.gov.uk/id/local-authority/32UC,Hsg Private Sector TL,Other Income,04/07/13,IJ00023767,-466.03,M & M GRANTHAM, 
East Lindsey District Council,http://statistics.data.gov.uk/id/local-authority/32UC,Hsg Private Sector TL,Grants and Contributions to Outside Bodies- No Service Recei,04/07/13,IJ00023767,5219.51,M & M GRANTHAM, 
East Lindsey District Council,http://statistics.data.gov.uk/id/local-authority/32UC,Corporate Accounting,Postages,04/07/13,IJ00023735,6.23,ROYAL MAIL, 
East Lindsey District Council,http://statistics.data.gov.uk/id/local-authority/32UC,Corporate Management,Postages,04/07/13,IJ00023735,860.95,ROYAL MAIL, 
East Lindsey District Council,http://statistics.data.gov.uk/id/local-authority/32UC,Corporate Management,Postages,04/07/13,IJ00023735,230.9,ROYAL MAIL, 
East Lindsey District Council,http://statistics.data.gov.uk/id/local-authority/32UC,Corporate Management,Postages,04/07/13,IJ00023735,2497.89,ROYAL MAIL, 
East Lindsey District Council,http://statistics.data.gov.uk/id/local-authority/32UC,Corporate Management,Postages,04/07/13,IJ00023735,873.7,ROYAL MAIL, 
East Lindsey District Council,http://statistics.data.gov.uk/id/local-authority/32UC,Corporate Management,Postages,04/07/13,IJ00023735,162.89,ROYAL MAIL, 
East Lindsey District Council,http://statistics.data.gov.uk/id/local-authority/32UC,Corporate Management,Postages,04/07/13,IJ00023735,57.7,ROYAL MAIL, 
East Lindsey District Council,http://statistics.data.gov.uk/id/local-authority/32UC,Corporate Management,Postages,04/07/13,IJ00023735,91.01,ROYAL MAIL, 
East Lindsey District Council,http://statistics.data.gov.uk/id/local-authority/32UC,Corporate Management,Postages,04/07/13,IJ00023735,1854.47,ROYAL MAIL, 
East Lindsey District Council,http://statistics.data.gov.uk/id/local-authority/32UC,Corporate Management,Postages,04/07/13,IJ00023736,630.21,ROYAL MAIL, 
East Lindsey District Council,http://statistics.data.gov.uk/id/local-authority/32UC,Corporate Management,Postages,04/07/13,IJ00023736,256.04,ROYAL MAIL, 
East Lindsey District Council,http://statistics.data.gov.uk/id/local-authority/32UC,Corporate Management,Postages,04/07/13,IJ00023736,637.98,ROYAL MAIL, 
East Lindsey District Council,http://statistics.data.gov.uk/id/local-authority/32UC,Corporate Management,Postages,04/07/13,IJ00023736,448.97,ROYAL MAIL, 
East Lindsey District Council,http://statistics.data.gov.uk/id/local-authority/32UC,Corporate Management,Postages,04/07/13,IJ00023736,49.89,ROYAL MAIL, 
East Lindsey District Council,http://statistics.data.gov.uk/id/local-authority/32UC,Corporate Management,Postages,04/07/13,IJ00023736,104.23,ROYAL MAIL, 
East Lindsey District Council,http://statistics.data.gov.uk/id/local-authority/32UC,Corporate Accounting,Postages,04/07/13,IJ00023737,19.21,ROYAL MAIL, 
East Lindsey District Council,http://statistics.data.gov.uk/id/local-authority/32UC,Corporate Management,Postages,04/07/13,IJ00023737,576.97,ROYAL MAIL, 
East Lindsey District Council,http://statistics.data.gov.uk/id/local-authority/32UC,Corporate Management,Postages,04/07/13,IJ00023737,267.33,ROYAL MAIL, 
East Lindsey District Council,http://statistics.data.gov.uk/id/local-authority/32UC,Corporate Management,Postages,04/07/13,IJ00023737,826.75,ROYAL MAIL, 
East Lindsey District Council,http://statistics.data.gov.uk/id/local-authority/32UC,Corporate Management,Postages,04/07/13,IJ00023737,367.56,ROYAL MAIL, 
East Lindsey District Council,http://statistics.data.gov.uk/id/local-authority/32UC,Corporate Management,Postages,04/07/13,IJ00023737,18.23,ROYAL MAIL, 
East Lindsey District Council,http://statistics.data.gov.uk/id/local-authority/32UC,Corporate Management,Postages,04/07/13,IJ00023737,9.43,ROYAL MAIL, 
East Lindsey District Council,http://statistics.data.gov.uk/id/local-authority/32UC,Corporate Management,Postages,04/07/13,IJ00023737,78.54,ROYAL MAIL, 
East Lindsey District Council,http://statistics.data.gov.uk/id/local-authority/32UC,Corporate Accounting,Postages,04/07/13,IJ00023738,6.42,ROYAL MAIL, 
East Lindsey District Council,http://statistics.data.gov.uk/id/local-authority/32UC,Enforcement Team Leader,Postages,04/07/13,IJ00023738,46.48,ROYAL MAIL, 
East Lindsey District Council,http://statistics.data.gov.uk/id/local-authority/32UC,Corporate Management,Postages,04/07/13,IJ00023738,514.87,ROYAL MAIL, 
East Lindsey District Council,http://statistics.data.gov.uk/id/local-authority/32UC,Corporate Management,Postages,04/07/13,IJ00023738,202.22,ROYAL MAIL, 
East Lindsey District Council,http://statistics.data.gov.uk/id/local-authority/32UC,Corporate Management,Postages,04/07/13,IJ00023738,1044.71,ROYAL MAIL, 
East Lindsey District Council,http://statistics.data.gov.uk/id/local-authority/32UC,Corporate Management,Postages,04/07/13,IJ00023738,1050.34,ROYAL MAIL, 
East Lindsey District Council,http://statistics.data.gov.uk/id/local-authority/32UC,Corporate Management,Postages,04/07/13,IJ00023738,84.94,ROYAL MAIL, 
East Lindsey District Council,http://statistics.data.gov.uk/id/local-authority/32UC,Corporate Management,Postages,04/07/13,IJ00023738,18.53,ROYAL MAIL, 
East Lindsey District Council,http://statistics.data.gov.uk/id/local-authority/32UC,Corporate Management,Postages,04/07/13,IJ00023738,69.42,ROYAL MAIL, 
East Lindsey District Council,http://statistics.data.gov.uk/id/local-authority/32UC,Corporate Accounting,Postages,04/07/13,IJ00023739,11.88,ROYAL MAIL, 
East Lindsey District Council,http://statistics.data.gov.uk/id/local-authority/32UC,Corporate Management,Postages,04/07/13,IJ00023739,659.55,ROYAL MAIL, 
East Lindsey District Council,http://statistics.data.gov.uk/id/local-authority/32UC,Corporate Management,Postages,04/07/13,IJ00023739,231.23,ROYAL MAIL, 
East Lindsey District Council,http://statistics.data.gov.uk/id/local-authority/32UC,Corporate Management,Postages,04/07/13,IJ00023739,633.08,ROYAL MAIL, 
East Lindsey District Council,http://statistics.data.gov.uk/id/local-authority/32UC,Corporate Management,Postages,04/07/13,IJ00023739,262.71,ROYAL MAIL, 
East Lindsey District Council,http://statistics.data.gov.uk/id/local-authority/32UC,Corporate Management,Postages,04/07/13,IJ00023739,40.59,ROYAL MAIL, 
East Lindsey District Council,http://statistics.data.gov.uk/id/local-authority/32UC,Corporate Management,Postages,04/07/13,IJ00023739,51.17,ROYAL MAIL, 
East Lindsey District Council,http://statistics.data.gov.uk/id/local-authority/32UC,Corporate Management,Postages,04/07/13,IJ00023739,38.03,ROYAL MAIL, 
East Lindsey District Council,http://statistics.data.gov.uk/id/local-authority/32UC,Corporate Accounting,Postages,04/07/13,IJ00023740,64.37,ROYAL MAIL, 
East Lindsey District Council,http://statistics.data.gov.uk/id/local-authority/32UC,Corporate Management,Postages,04/07/13,IJ00023740,704.57,ROYAL MAIL, 
East Lindsey District Council,http://statistics.data.gov.uk/id/local-authority/32UC,Corporate Management,Postages,04/07/13,IJ00023740,207.22,ROYAL MAIL, 
East Lindsey District Council,http://statistics.data.gov.uk/id/local-authority/32UC,Corporate Management,Postages,04/07/13,IJ00023740,1029.77,ROYAL MAIL, 
East Lindsey District Council,http://statistics.data.gov.uk/id/local-authority/32UC,Corporate Management,Postages,04/07/13,IJ00023740,366.97,ROYAL MAIL, 
East Lindsey District Council,http://statistics.data.gov.uk/id/local-authority/32UC,Corporate Management,Postages,04/07/13,IJ00023740,102.06,ROYAL MAIL, 
East Lindsey District Council,http://statistics.data.gov.uk/id/local-authority/32UC,Corporate Management,Postages,04/07/13,IJ00023740,27.95,ROYAL MAIL, 
East Lindsey District Council,http://statistics.data.gov.uk/id/local-authority/32UC,Corporate Management,Postages,04/07/13,IJ00023740,54.28,ROYAL MAIL, 
East Lindsey District Council,http://statistics.data.gov.uk/id/local-authority/32UC,Theatre Manager,Grants and Contributions to Outside Bodies- No Service Recei,04/07/13,IJ00023681,624.6,LINCOLNSHIRE AGRICULTURAL SOCIETY, 
East Lindsey District Council,http://statistics.data.gov.uk/id/local-authority/32UC,Customer Services Manager,Payments to Bodies in Respect of Income Collected,04/07/13,IJ00023681,565.2,LINCOLNSHIRE AGRICULTURAL SOCIETY, 
East Lindsey District Council,http://statistics.data.gov.uk/id/local-authority/32UC,Customer Services Manager,Payments to Bodies in Respect of Income Collected,04/07/13,IJ00023681,2278.8,LINCOLNSHIRE AGRICULTURAL SOCIETY, 
East Lindsey District Council,http://statistics.data.gov.uk/id/local-authority/32UC,Customer Services Manager,Payments to Bodies in Respect of Income Collected,04/07/13,IJ00023681,570.6,LINCOLNSHIRE AGRICULTURAL SOCIETY, 
East Lindsey District Council,http://statistics.data.gov.uk/id/local-authority/32UC,Customer Services Manager,Payments to Bodies in Respect of Income Collected,04/07/13,IJ00023681,208.8,LINCOLNSHIRE AGRICULTURAL SOCIETY, 
East Lindsey District Council,http://statistics.data.gov.uk/id/local-authority/32UC,Customer Services Manager,Payments to Bodies in Respect of Income Collected,04/07/13,IJ00023681,284.4,LINCOLNSHIRE AGRICULTURAL SOCIETY, 
East Lindsey District Council,http://statistics.data.gov.uk/id/local-authority/32UC,Corporate Accounting,Professional & Contractors Fees,04/07/13,IJ00023731,2626.67,THE RISK FACTOR LTD, 
East Lindsey District Council,http://statistics.data.gov.uk/id/local-authority/32UC,Corporate Management,Lincolnshire Legal Services,04/07/13,IJ00023668,22425.88,LINCOLNSHIRE COUNTY COUNCIL, 
East Lindsey District Council,http://statistics.data.gov.uk/id/local-authority/32UC,Corporate Management,Lincolnshire Legal Services,04/07/13,IJ00023668,2414.7,LINCOLNSHIRE COUNTY COUNCIL, 
East Lindsey District Council,http://statistics.data.gov.uk/id/local-authority/32UC,Economic & Tourism,Buildings Maintenance - Responsive,04/07/13,IJ00023779,528,SEYMOUR & CASTLE LTD, 
East Lindsey District Council,http://statistics.data.gov.uk/id/local-authority/32UC,Capital WIP,"Purchase of Plant, Machinery & Equipment",04/07/13,IJ00023761,4369.33,SEYMOUR & CASTLE LTD, 
East Lindsey District Council,http://statistics.data.gov.uk/id/local-authority/32UC,Environment Team Leader,Grants and Contributions to Outside Bodies- No Service Recei,04/07/13,IJ00023685,1309,FOXHALL CONSTRUCTION LTD, 
East Lindsey District Council,http://statistics.data.gov.uk/id/local-authority/32UC,Housing Support TL,Rent and Lease Payments,04/07/13,IJ00023821,852.6,NEW LINX HOUSING TRUST, 
East Lindsey District Council,http://statistics.data.gov.uk/id/local-authority/32UC,Housing Support TL,Rent and Lease Payments,04/07/13,IJ00023823,1001.64,NEW LINX HOUSING TRUST, 
East Lindsey District Council,http://statistics.data.gov.uk/id/local-authority/32UC,Housing Support TL,Rent and Lease Payments,04/07/13,IJ00023825,1005,NEW LINX HOUSING TRUST, 
East Lindsey District Council,http://statistics.data.gov.uk/id/local-authority/32UC,Housing Support TL,Rent and Lease Payments,04/07/13,IJ00023827,914.52,NEW LINX HOUSING TRUST, 
East Lindsey District Council,http://statistics.data.gov.uk/id/local-authority/32UC,Hsg Advice & Homelessness TL,Rent and Lease Payments,04/07/13,IJ00023796,920.4,NEW LINX HOUSING TRUST, 
East Lindsey District Council,http://statistics.data.gov.uk/id/local-authority/32UC,Hsg Advice & Homelessness TL,Rent and Lease Payments,04/07/13,IJ00023797,920.4,NEW LINX HOUSING TRUST, 
East Lindsey District Council,http://statistics.data.gov.uk/id/local-authority/32UC,Hsg Advice & Homelessness TL,Rent and Lease Payments,04/07/13,IJ00023798,1111.2,NEW LINX HOUSING TRUST, 
East Lindsey District Council,http://statistics.data.gov.uk/id/local-authority/32UC,Hsg Advice & Homelessness TL,Rent and Lease Payments,04/07/13,IJ00023799,1243.68,NEW LINX HOUSING TRUST, 
East Lindsey District Council,http://statistics.data.gov.uk/id/local-authority/32UC,Hsg Advice & Homelessness TL,Rent and Lease Payments,04/07/13,IJ00023800,1052.64,NEW LINX HOUSING TRUST, 
East Lindsey District Council,http://statistics.data.gov.uk/id/local-authority/32UC,Hsg Advice & Homelessness TL,Rent and Lease Payments,04/07/13,IJ00023801,1031.16,NEW LINX HOUSING TRUST, 
East Lindsey District Council,http://statistics.data.gov.uk/id/local-authority/32UC,Hsg Advice & Homelessness TL,Rent and Lease Payments,04/07/13,IJ00023802,1054.08,NEW LINX HOUSING TRUST, 
East Lindsey District Council,http://statistics.data.gov.uk/id/local-authority/32UC,Hsg Advice & Homelessness TL,Rent and Lease Payments,04/07/13,IJ00023803,1150.2,NEW LINX HOUSING TRUST, 
East Lindsey District Council,http://statistics.data.gov.uk/id/local-authority/32UC,Hsg Advice & Homelessness TL,Rent and Lease Payments,04/07/13,IJ00023804,1150.2,NEW LINX HOUSING TRUST, 
East Lindsey District Council,http://statistics.data.gov.uk/id/local-authority/32UC,Hsg Advice & Homelessness TL,Rent and Lease Payments,04/07/13,IJ00023805,1150.2,NEW LINX HOUSING TRUST, 
East Lindsey District Council,http://statistics.data.gov.uk/id/local-authority/32UC,Hsg Advice & Homelessness TL,Rent and Lease Payments,04/07/13,IJ00023806,1150.2,NEW LINX HOUSING TRUST, 
East Lindsey District Council,http://statistics.data.gov.uk/id/local-authority/32UC,Hsg Advice & Homelessness TL,Rent and Lease Payments,04/07/13,IJ00023807,1167.36,NEW LINX HOUSING TRUST, 
East Lindsey District Council,http://statistics.data.gov.uk/id/local-authority/32UC,Hsg Advice & Homelessness TL,Rent and Lease Payments,04/07/13,IJ00023808,1167.36,NEW LINX HOUSING TRUST, 
East Lindsey District Council,http://statistics.data.gov.uk/id/local-authority/32UC,Hsg Advice & Homelessness TL,Rent and Lease Payments,04/07/13,IJ00023809,1076.16,NEW LINX HOUSING TRUST, 
East Lindsey District Council,http://statistics.data.gov.uk/id/local-authority/32UC,Corporate Management,Professional & Contractors Fees,04/07/13,IJ00023755,650,CHRISTOPHER DONKIN, 
East Lindsey District Council,http://statistics.data.gov.uk/id/local-authority/32UC,Leisure Operations,Other Miscellaneous Expenses,04/07/13,IJ00023643,824.07,DEE BEE, 
East Lindsey District Council,http://statistics.data.gov.uk/id/local-authority/32UC,Leisure Operations,Other agencies,04/07/13,IJ00023692,55416,ROYAL NATIONAL LIFEBOAT INSTITUTE, 
East Lindsey District Council,http://statistics.data.gov.uk/id/local-authority/32UC,Waste Services Manager,Agency Staff,04/07/13,IJ00023687,6321.76,CLOSE INVOICE FINANCE LTD, 
East Lindsey District Council,http://statistics.data.gov.uk/id/local-authority/32UC,"Performance, Governance & Commissioning",Grants and Contributions to Outside Bodies- No Service Recei,04/07/13,IJ00023771,8000,WRAGBY TOWN HALL MGT COMMITTEE, 
East Lindsey District Council,http://statistics.data.gov.uk/id/local-authority/32UC,Environment Team Leader,Grants and Contributions to Outside Bodies- No Service Recei,04/07/13,IJ00023684,1100,PELL PLANT HIRE LTD, 
East Lindsey District Council,http://statistics.data.gov.uk/id/local-authority/32UC,Enforcement Team Leader,Payments to Bodies in Respect of Income Collected,04/07/13,IJ00023728,1839.23,INNES ENGLAND COMMERCIAL PROPERTY, 
East Lindsey District Council,http://statistics.data.gov.uk/id/local-authority/32UC,Hsg Private Sector TL,Other Income,04/07/13,IJ00023765,-587.33,DOLPHIN MOBILITY EAST MIDLANDS, 
East Lindsey District Council,http://statistics.data.gov.uk/id/local-authority/32UC,Hsg Private Sector TL,Grants and Contributions to Outside Bodies- No Service Recei,04/07/13,IJ00023765,1779.8,DOLPHIN MOBILITY EAST MIDLANDS, 
East Lindsey District Council,http://statistics.data.gov.uk/id/local-authority/32UC,Hsg Private Sector TL,Other Income,04/07/13,IJ00023763,-429.84,RODDEN & COOPER, 
East Lindsey District Council,http://statistics.data.gov.uk/id/local-authority/32UC,Hsg Private Sector TL,Grants and Contributions to Outside Bodies- No Service Recei,04/07/13,IJ00023763,4814.25,RODDEN & COOPER, 
East Lindsey District Council,http://statistics.data.gov.uk/id/local-authority/32UC,Cultural & Related Services,Advertising - Events,04/07/13,IJ00023662,2050,LAVA, 
East Lindsey District Council,http://statistics.data.gov.uk/id/local-authority/32UC,Neighbourhood Services,Agency Staff,04/07/13,IJ00023730,1066.82,THE WORKSHOP (WISBECH) LIMITED, 
East Lindsey District Council,http://statistics.data.gov.uk/id/local-authority/32UC,Neighbourhood Services,Agency Staff,04/07/13,IJ00023730,1066.81,THE WORKSHOP (WISBECH) LIMITED, 
East Lindsey District Council,http://statistics.data.gov.uk/id/local-authority/32UC,Cultural & Related Services,Professional & Contractors Fees,04/07/13,IJ00023826,145566,MAGNETIC EVENTS LTD, 
East Lindsey District Council,http://statistics.data.gov.uk/id/local-authority/32UC,Housing Support TL,Rent and Lease Payments,04/07/13,IJ00023819,937.5,TOTEMIC LTD, 
East Lindsey District Council,http://statistics.data.gov.uk/id/local-authority/32UC,Corporate Accounting,Compass Point Business Services,04/07/13,IJ00023764,421415.96,COMPASS POINT BUSINESS SERVICES, 
East Lindsey District Council,http://statistics.data.gov.uk/id/local-authority/32UC,Theatre Manager,Performers and Entertainers Fees,04/07/13,IJ00023748,3507.86,DEREK BLOCK CONCERT PROMOTIONS LTD, 
East Lindsey District Council,http://statistics.data.gov.uk/id/local-authority/32UC,Theatre Manager,Performers and Entertainers Fees,04/07/13,IJ00023748,-150,DEREK BLOCK CONCERT PROMOTIONS LTD, 
East Lindsey District Council,http://statistics.data.gov.uk/id/local-authority/32UC,Theatre Manager,Postages,04/07/13,IJ00023748,126.72,DEREK BLOCK CONCERT PROMOTIONS LTD, 
East Lindsey District Council,http://statistics.data.gov.uk/id/local-authority/32UC,Leisure Operations,Water and Sewerage Charges,04/07/13,IJ00023834,3322.12,ANGLIAN WATER, 
East Lindsey District Council,http://statistics.data.gov.uk/id/local-authority/32UC,Economic & Tourism,Water and Sewerage Charges,04/07/13,IJ00023835,9260.63,ANGLIAN WATER, 
East Lindsey District Council,http://statistics.data.gov.uk/id/local-authority/32UC,Neighbourhood Services,Water and Sewerage Charges,04/07/13,IJ00023836,1321.66,ANGLIAN WATER, 
East Lindsey District Council,http://statistics.data.gov.uk/id/local-authority/32UC,TL Property,Cleaning Contract,04/07/13,IJ00023774,586,OLSEN CONTRACT CLEANERS, 
East Lindsey District Council,http://statistics.data.gov.uk/id/local-authority/32UC,Waste Services Manager,Materials and Consumables,04/07/13,IJ00023754,13624,ESE LTD, 
East Lindsey District Council,http://statistics.data.gov.uk/id/local-authority/32UC,Theatre Manager,Buildings Maintenance - Programmed,04/07/13,IJ00023792,895,QUALSURV ENVIRONMENTAL SOLUTIONS LTD, 
East Lindsey District Council,http://statistics.data.gov.uk/id/local-authority/32UC,TL Property,Buildings Maintenance - Responsive,04/07/13,IJ00023785,766.24,NORTHERN POWERGRID (YORKSHIRE) PLC, 
East Lindsey District Council,http://statistics.data.gov.uk/id/local-authority/32UC,TL Property,Buildings Maintenance - Responsive,04/07/13,IJ00023790,582.7,NORTHERN POWERGRID (YORKSHIRE) PLC, 
East Lindsey District Council,http://statistics.data.gov.uk/id/local-authority/32UC,Building Control,Other Income,04/07/13,IJ00023842,3030,CLEMENT KEYS, 
East Lindsey District Council,http://statistics.data.gov.uk/id/local-authority/32UC,Neighbourhood Services,Clothing Uniforms And Laundry,04/07/13,IJ00023703,832.3,SAFETY MANAGEMENT INT GROUP, 
East Lindsey District Council,http://statistics.data.gov.uk/id/local-authority/32UC,Economic & Tourism,Other Miscellaneous Expenses,04/07/13,IJ00023660,1530.8,WELLS & SONS MARQUEES LTD, 
East Lindsey District Council,http://statistics.data.gov.uk/id/local-authority/32UC,Corporate Accounting,Insurance,04/07/13,IJ00023732,11029,HSB ENGINEERING INSURANCE SERVICES LTD, 
East Lindsey District Council,http://statistics.data.gov.uk/id/local-authority/32UC,Economic & Tourism,Furniture and Equipment,04/07/13,IJ00023693,5345,Wifigear Limited, 
East Lindsey District Council,http://statistics.data.gov.uk/id/local-authority/32UC,Information Technology,Computer Software Purchase,04/07/13,IJ00023770,4333,Involve Visual Collaboration Ltd, 
East Lindsey District Council,http://statistics.data.gov.uk/id/local-authority/32UC,Economic & Tourism,Other Miscellaneous Expenses,04/07/13,IJ00023813,1688,Groundwork Archaeology Ltd, 
East Lindsey District Council,http://statistics.data.gov.uk/id/local-authority/32UC,Hsg Advice & Homelessness TL,Other Miscellaneous Expenses,04/07/13,IJ00023671,905,Glen Postle, 
East Lindsey District Council,http://statistics.data.gov.uk/id/local-authority/32UC,Hsg Advice & Homelessness TL,Other Miscellaneous Expenses,04/07/13,IJ00023810,1300,Glen Postle, 
East Lindsey District Council,http://statistics.data.gov.uk/id/local-authority/32UC,Cultural & Related Services,Grants and Contributions to Outside Bodies- No Service Recei,04/07/13,IJ00023699,18598,Viva Chamber Orchestra Limited, 
East Lindsey District Council,http://statistics.data.gov.uk/id/local-authority/32UC,Leisure Operations,Other agencies,04/07/13,IJ00023637,1362,Water Fitness Ltd, 
East Lindsey District Council,http://statistics.data.gov.uk/id/local-authority/32UC,Leisure Operations,Buildings Maintenance - Programmed,04/07/13,IJ00023706,3030,Sleaford Electrical and Refrigeration Company Ltd, 
East Lindsey District Council,http://statistics.data.gov.uk/id/local-authority/32UC,Theatre Manager,Performers and Entertainers Fees,04/07/13,IJ00023741,6793,Entertainers Management Ltd, 
East Lindsey District Council,http://statistics.data.gov.uk/id/local-authority/32UC,Theatre Manager,Performers and Entertainers Fees,04/07/13,IJ00023741,-210,Entertainers Management Ltd, 
East Lindsey District Council,http://statistics.data.gov.uk/id/local-authority/32UC,Theatre Manager,Performers and Entertainers Fees,04/07/13,IJ00023742,3175,Ray McVay Orchestra, 
East Lindsey District Council,http://statistics.data.gov.uk/id/local-authority/32UC,Theatre Manager,Performers and Entertainers Fees,04/07/13,IJ00023742,-642,Ray McVay Orchestra, 
East Lindsey District Council,http://statistics.data.gov.uk/id/local-authority/32UC,Development Control,Professional & Contractors Fees,04/07/13,IJ00023818,1000,REDACTED PERSONAL INFORMATION,REDACTED
East Lindsey District Council,http://statistics.data.gov.uk/id/local-authority/32UC,Theatre Manager,Other Private Contractors,11/07/13,IJ00023864,39.4,BIFFA WASTE SERVICES LTD, 
East Lindsey District Council,http://statistics.data.gov.uk/id/local-authority/32UC,Theatre Manager,Other Private Contractors,11/07/13,IJ00023864,116.6,BIFFA WASTE SERVICES LTD, 
East Lindsey District Council,http://statistics.data.gov.uk/id/local-authority/32UC,Leisure Operations,Other Private Contractors,11/07/13,IJ00023864,58.3,BIFFA WASTE SERVICES LTD, 
East Lindsey District Council,http://statistics.data.gov.uk/id/local-authority/32UC,Leisure Operations,Other Private Contractors,11/07/13,IJ00023864,58.3,BIFFA WASTE SERVICES LTD, 
East Lindsey District Council,http://statistics.data.gov.uk/id/local-authority/32UC,Leisure Operations,Other Private Contractors,11/07/13,IJ00023864,291.5,BIFFA WASTE SERVICES LTD, 
East Lindsey District Council,http://statistics.data.gov.uk/id/local-authority/32UC,Economic & Tourism,Other Private Contractors,11/07/13,IJ00023864,34.98,BIFFA WASTE SERVICES LTD, 
East Lindsey District Council,http://statistics.data.gov.uk/id/local-authority/32UC,Economic & Tourism,Other Private Contractors,11/07/13,IJ00023864,58.3,BIFFA WASTE SERVICES LTD, 
East Lindsey District Council,http://statistics.data.gov.uk/id/local-authority/32UC,TL Property,Other Private Contractors,11/07/13,IJ00023864,58.3,BIFFA WASTE SERVICES LTD, 
East Lindsey District Council,http://statistics.data.gov.uk/id/local-authority/32UC,TL Property,Other Private Contractors,11/07/13,IJ00023864,283.75,BIFFA WASTE SERVICES LTD, 
East Lindsey District Council,http://statistics.data.gov.uk/id/local-authority/32UC,TL Property,Other Private Contractors,11/07/13,IJ00023864,58.3,BIFFA WASTE SERVICES LTD, 
East Lindsey District Council,http://statistics.data.gov.uk/id/local-authority/32UC,Leisure Operations,Other Private Contractors,11/07/13,IJ00023864,116.6,BIFFA WASTE SERVICES LTD, 
East Lindsey District Council,http://statistics.data.gov.uk/id/local-authority/32UC,Economic & Tourism,Other Private Contractors,11/07/13,IJ00023864,58.3,BIFFA WASTE SERVICES LTD, 
East Lindsey District Council,http://statistics.data.gov.uk/id/local-authority/32UC,Leisure Operations,Other Private Contractors,11/07/13,IJ00023865,4582.08,COMPETITION LINE (UK) LTD, 
East Lindsey District Council,http://statistics.data.gov.uk/id/local-authority/32UC,Leisure Operations,Other agencies,11/07/13,IJ00024014,6726.95,COMPETITION LINE (UK) LTD, 
East Lindsey District Council,http://statistics.data.gov.uk/id/local-authority/32UC,Neighbourhood Services,Professional & Contractors Fees,11/07/13,IJ00023908,180,SID DENNIS & SONS LTD, 
East Lindsey District Council,http://statistics.data.gov.uk/id/local-authority/32UC,Neighbourhood Services,Professional & Contractors Fees,11/07/13,IJ00023908,637.32,SID DENNIS & SONS LTD, 
East Lindsey District Council,http://statistics.data.gov.uk/id/local-authority/32UC,Economic & Tourism,Professional & Contractors Fees,11/07/13,IJ00023987,2543.65,SID DENNIS & SONS LTD, 
East Lindsey District Council,http://statistics.data.gov.uk/id/local-authority/32UC,Customer Services Manager,Payments to Bodies in Respect of Income Collected,11/07/13,IJ00023933,595.35,GRAYSCROFT BUS SERVICES LTD, 
East Lindsey District Council,http://statistics.data.gov.uk/id/local-authority/32UC,Customer Services Manager,Payments to Bodies in Respect of Income Collected,11/07/13,IJ00023934,28.8,F HUNT (COACH HIRE) LTD, 
East Lindsey District Council,http://statistics.data.gov.uk/id/local-authority/32UC,Customer Services Manager,Payments to Bodies in Respect of Income Collected,11/07/13,IJ00023934,501.55,F HUNT (COACH HIRE) LTD, 
East Lindsey District Council,http://statistics.data.gov.uk/id/local-authority/32UC,Leisure Operations,Materials and Consumables,11/07/13,IJ00023935,975.51,STOWLIN LTD, 
East Lindsey District Council,http://statistics.data.gov.uk/id/local-authority/32UC,Collection Fund,Precept - Lincolnshire Police,11/07/13,IJ00024012,766123.57,LOCAL POLICE AUTHORITY FUND ACCOUNT, 
East Lindsey District Council,http://statistics.data.gov.uk/id/local-authority/32UC,Corporate Management,Agency Staff,11/07/13,IJ00023985,3807.78,BOSTON BOROUGH COUNCIL, 
East Lindsey District Council,http://statistics.data.gov.uk/id/local-authority/32UC,Hsg Private Sector TL,Other Income,11/07/13,IJ00024000,-1516.95,COTTS BUILDERS AND CONTRACTORS, 
East Lindsey District Council,http://statistics.data.gov.uk/id/local-authority/32UC,Hsg Private Sector TL,Grants and Contributions to Outside Bodies- No Service Recei,11/07/13,IJ00024000,16989.89,COTTS BUILDERS AND CONTRACTORS, 
East Lindsey District Council,http://statistics.data.gov.uk/id/local-authority/32UC,Corporate Accounting,Postages,11/07/13,IJ00023940,9.59,ROYAL MAIL, 
East Lindsey District Council,http://statistics.data.gov.uk/id/local-authority/32UC,Enforcement Team Leader,Postages,11/07/13,IJ00023940,30.88,ROYAL MAIL, 
East Lindsey District Council,http://statistics.data.gov.uk/id/local-authority/32UC,Corporate Management,Postages,11/07/13,IJ00023940,472.72,ROYAL MAIL, 
East Lindsey District Council,http://statistics.data.gov.uk/id/local-authority/32UC,Corporate Management,Postages,11/07/13,IJ00023940,206.99,ROYAL MAIL, 
East Lindsey District Council,http://statistics.data.gov.uk/id/local-authority/32UC,Corporate Management,Postages,11/07/13,IJ00023940,3027.64,ROYAL MAIL, 
East Lindsey District Council,http://statistics.data.gov.uk/id/local-authority/32UC,Corporate Management,Postages,11/07/13,IJ00023940,879.68,ROYAL MAIL, 
East Lindsey District Council,http://statistics.data.gov.uk/id/local-authority/32UC,Corporate Management,Postages,11/07/13,IJ00023940,160.51,ROYAL MAIL, 
East Lindsey District Council,http://statistics.data.gov.uk/id/local-authority/32UC,Corporate Management,Postages,11/07/13,IJ00023940,49.41,ROYAL MAIL, 
East Lindsey District Council,http://statistics.data.gov.uk/id/local-authority/32UC,Corporate Management,Postages,11/07/13,IJ00023940,169.02,ROYAL MAIL, 
East Lindsey District Council,http://statistics.data.gov.uk/id/local-authority/32UC,Leisure Operations,Other Private Contractors,11/07/13,IJ00023866,593.5,VENDING ENTERPRISES, 
East Lindsey District Council,http://statistics.data.gov.uk/id/local-authority/32UC,"Performance, Governance & Commissioning",Other Miscellaneous Expenses,11/07/13,IJ00024028,533.7,VENDING ENTERPRISES, 
East Lindsey District Council,http://statistics.data.gov.uk/id/local-authority/32UC,Waste Services Manager,Other agencies,11/07/13,IJ00023899,895.46,GLASS RECYCLING (UK) LTD, 
East Lindsey District Council,http://statistics.data.gov.uk/id/local-authority/32UC,Planning & Housing Policy Manager,Grants and Contributions to Outside Bodies- No Service Recei,11/07/13,IJ00023874,17750,LINCOLNSHIRE COUNTY COUNCIL, 
East Lindsey District Council,http://statistics.data.gov.uk/id/local-authority/32UC,Collection Fund,Precept- Lincolnshire County Council,11/07/13,IJ00024011,4612675,LINCOLNSHIRE COUNTY COUNCIL, 
East Lindsey District Council,http://statistics.data.gov.uk/id/local-authority/32UC,Communications Manager,Advertising - Events,11/07/13,IJ00024022,4347,DESIGN BY DISTRACTION, 
East Lindsey District Council,http://statistics.data.gov.uk/id/local-authority/32UC,Economic & Tourism,Other Miscellaneous Expenses,11/07/13,IJ00023861,3000,J H ATKINSON & SON, 
East Lindsey District Council,http://statistics.data.gov.uk/id/local-authority/32UC,Cultural & Related Services,Furniture and Equipment,11/07/13,IJ00023915,1633,BETTS MARQUEES LTD, 
East Lindsey District Council,http://statistics.data.gov.uk/id/local-authority/32UC,Corporate Management,Postages,11/07/13,IJ00023939,9000,NEOPOST LTD, 
East Lindsey District Council,http://statistics.data.gov.uk/id/local-authority/32UC,Hsg Private Sector TL,Stationery,11/07/13,IJ00023969,1.38,ESPO, 
East Lindsey District Council,http://statistics.data.gov.uk/id/local-authority/32UC,Cultural & Related Services,Furniture and Equipment,11/07/13,IJ00023969,78.76,ESPO, 
East Lindsey District Council,http://statistics.data.gov.uk/id/local-authority/32UC,Neighbourhood Services,Materials and Consumables,11/07/13,IJ00023969,376.41,ESPO, 
East Lindsey District Council,http://statistics.data.gov.uk/id/local-authority/32UC,Neighbourhood Services,Materials and Consumables,11/07/13,IJ00023969,587.51,ESPO, 
East Lindsey District Council,http://statistics.data.gov.uk/id/local-authority/32UC,Leisure Operations,Cleaning Contract,11/07/13,IJ00023969,268,ESPO, 
East Lindsey District Council,http://statistics.data.gov.uk/id/local-authority/32UC,Leisure Operations,Stationery,11/07/13,IJ00023969,1.85,ESPO, 
East Lindsey District Council,http://statistics.data.gov.uk/id/local-authority/32UC,Leisure Operations,Other Miscellaneous Expenses,11/07/13,IJ00024025,856.75,DEE BEE, 
East Lindsey District Council,http://statistics.data.gov.uk/id/local-authority/32UC,Hsg Private Sector TL,Grants and Contributions to Outside Bodies- No Service Recei,11/07/13,IJ00024001,1250,OBAM STAIRLIFTS, 
East Lindsey District Council,http://statistics.data.gov.uk/id/local-authority/32UC,Hsg Private Sector TL,Grants and Contributions to Outside Bodies- No Service Recei,11/07/13,IJ00024002,1466,OBAM STAIRLIFTS, 
East Lindsey District Council,http://statistics.data.gov.uk/id/local-authority/32UC,Enforcement Team Leader,Payments to Bodies in Respect of Income Collected,11/07/13,IJ00023965,2140.09,INNES ENGLAND COMMERCIAL PROPERTY, 
East Lindsey District Council,http://statistics.data.gov.uk/id/local-authority/32UC,Development Control,Agency Staff,11/07/13,IJ00023857,5431.02,LGS LIMITED, 
East Lindsey District Council,http://statistics.data.gov.uk/id/local-authority/32UC,Hsg Advice & Homelessness TL,Grants and Contributions to Outside Bodies- No Service Recei,11/07/13,IJ00023957,5000,EAST LINDSEY CITIZENS ADVICE BUREAU, 
East Lindsey District Council,http://statistics.data.gov.uk/id/local-authority/32UC,Neighbourhood Services,Agency Staff,11/07/13,IJ00023914,1235.82,THE WORKSHOP (WISBECH) LIMITED, 
East Lindsey District Council,http://statistics.data.gov.uk/id/local-authority/32UC,Neighbourhood Services,Agency Staff,11/07/13,IJ00023914,1235.81,THE WORKSHOP (WISBECH) LIMITED, 
East Lindsey District Council,http://statistics.data.gov.uk/id/local-authority/32UC,Leisure Operations,Professional & Contractors Fees,11/07/13,IJ00023886,945,DONNA MAHER, 
East Lindsey District Council,http://statistics.data.gov.uk/id/local-authority/32UC,Customer Services Manager,Payments to Bodies in Respect of Income Collected,11/07/13,IJ00023931,1863.29,NATIONAL EXPRESS CREDIT CONTROL DEPT, 
East Lindsey District Council,http://statistics.data.gov.uk/id/local-authority/32UC,Customer Services Manager,Payments to Bodies in Respect of Income Collected,11/07/13,IJ00023931,2165.42,NATIONAL EXPRESS CREDIT CONTROL DEPT, 
East Lindsey District Council,http://statistics.data.gov.uk/id/local-authority/32UC,Customer Services Manager,Payments to Bodies in Respect of Income Collected,11/07/13,IJ00023931,571.28,NATIONAL EXPRESS CREDIT CONTROL DEPT, 
East Lindsey District Council,http://statistics.data.gov.uk/id/local-authority/32UC,Customer Services Manager,Payments to Bodies in Respect of Income Collected,11/07/13,IJ00023931,155.63,NATIONAL EXPRESS CREDIT CONTROL DEPT, 
East Lindsey District Council,http://statistics.data.gov.uk/id/local-authority/32UC,Revenues & Benefits,Court Costs,11/07/13,IJ00023875,6723,CENTRAL FINANCE UNIT, 
East Lindsey District Council,http://statistics.data.gov.uk/id/local-authority/32UC,Revenues & Benefits,Court Costs,11/07/13,IJ00023875,276,CENTRAL FINANCE UNIT, 
East Lindsey District Council,http://statistics.data.gov.uk/id/local-authority/32UC,Customer Services Manager,Payments to Bodies in Respect of Income Collected,11/07/13,IJ00023936,754.7,WOODHALL SPA COTTAGE MUSEUM, 
East Lindsey District Council,http://statistics.data.gov.uk/id/local-authority/32UC,Economic & Tourism,Clothing Uniforms And Laundry,11/07/13,IJ00023989,1396.42,PHS LAUNDRYSERV, 
East Lindsey District Council,http://statistics.data.gov.uk/id/local-authority/32UC,"Performance, Governance & Commissioning",Grants and Contributions to Outside Bodies- No Service Recei,11/07/13,IJ00024008,500,HOGSTHORPE PARISH COUNCIL, 
East Lindsey District Council,http://statistics.data.gov.uk/id/local-authority/32UC,Hsg Private Sector TL,Professional & Contractors Fees,11/07/13,IJ00023955,9250,SAFE & SOUND SECURITY SYSTEMS LINKS LTD, 
East Lindsey District Council,http://statistics.data.gov.uk/id/local-authority/32UC,Economic & Tourism,Other Miscellaneous Expenses,11/07/13,IJ00023992,5100,VISITBRITAIN, 
East Lindsey District Council,http://statistics.data.gov.uk/id/local-authority/32UC,Hsg Private Sector TL,Other Income,11/07/13,IJ00023999,-295.92,MARK DONNER LTD, 
East Lindsey District Council,http://statistics.data.gov.uk/id/local-authority/32UC,Hsg Private Sector TL,Grants and Contributions to Outside Bodies- No Service Recei,11/07/13,IJ00023999,3314.3,MARK DONNER LTD, 
East Lindsey District Council,http://statistics.data.gov.uk/id/local-authority/32UC,Economic & Tourism,Other Miscellaneous Expenses,11/07/13,IJ00023997,719.64,CARRIER DIRECT LIMITED, 
East Lindsey District Council,http://statistics.data.gov.uk/id/local-authority/32UC,Economic & Tourism,Other Miscellaneous Expenses,11/07/13,IJ00023994,946.15,CBS OUTDOOR LIMITED, 
East Lindsey District Council,http://statistics.data.gov.uk/id/local-authority/32UC,Waste Services Manager,Commercial Vehicle Lease,11/07/13,IJ00023863,79474,MAY GURNEY FLEET & PASSENGER SERVICES LTD, 
East Lindsey District Council,http://statistics.data.gov.uk/id/local-authority/32UC,Theatre Manager,Commercial Vehicle Lease,11/07/13,IJ00023863,376.97,MAY GURNEY FLEET & PASSENGER SERVICES LTD, 
East Lindsey District Council,http://statistics.data.gov.uk/id/local-authority/32UC,Neighbourhood Services,Commercial Vehicle Lease,11/07/13,IJ00023863,945,MAY GURNEY FLEET & PASSENGER SERVICES LTD, 
East Lindsey District Council,http://statistics.data.gov.uk/id/local-authority/32UC,Neighbourhood Services,Commercial Vehicle Lease,11/07/13,IJ00023863,945,MAY GURNEY FLEET & PASSENGER SERVICES LTD, 
East Lindsey District Council,http://statistics.data.gov.uk/id/local-authority/32UC,Cultural & Related Services,Professional & Contractors Fees,11/07/13,IJ00023911,1700,RED DOG FILM CIC, 
East Lindsey District Council,http://statistics.data.gov.uk/id/local-authority/32UC,Economic & Tourism,Grants and Contributions to Outside Bodies- No Service Recei,11/07/13,IJ00023991,1325.79,TENNYSON INSURANCE, 
East Lindsey District Council,http://statistics.data.gov.uk/id/local-authority/32UC,Waste Services Manager,Fuel & Oil,11/07/13,IJ00024019,27708.99,EMO OIL LIMITED, 
East Lindsey District Council,http://statistics.data.gov.uk/id/local-authority/32UC,Economic & Tourism,Other Miscellaneous Expenses,11/07/13,IJ00023944,1110,Front Row Fencing Ltd, 
East Lindsey District Council,http://statistics.data.gov.uk/id/local-authority/32UC,Cultural & Related Services,Advertising - Events,11/07/13,IJ00023979,500,LOCAL WORLD, 
East Lindsey District Council,http://statistics.data.gov.uk/id/local-authority/32UC,Cultural & Related Services,Film and Entertainment Costs,11/07/13,IJ00022650,800,DONNA PETERSON, 
East Lindsey District Council,http://statistics.data.gov.uk/id/local-authority/32UC,Cultural & Related Services,Film and Entertainment Costs,11/07/13,IJ00023870,800,DONNA PETERSON, 
East Lindsey District Council,http://statistics.data.gov.uk/id/local-authority/32UC,Enforcement Team Leader,Other Employee Expenses,11/07/13,IJ00023973,528,Disclosure and Barring Service, 
East Lindsey District Council,http://statistics.data.gov.uk/id/local-authority/32UC,Enforcement Team Leader,Other Employee Expenses,11/07/13,IJ00023974,616,Disclosure and Barring Service, 
East Lindsey District Council,http://statistics.data.gov.uk/id/local-authority/32UC,Enforcement Team Leader,Other Employee Expenses,11/07/13,IJ00023976,924,Disclosure and Barring Service, 
East Lindsey District Council,http://statistics.data.gov.uk/id/local-authority/32UC,Capital WIP,Works to Buildings (Sub Contractors),11/07/13,IJ00023853,4776,Littlethorpe Of Leicester Limited, 
East Lindsey District Council,http://statistics.data.gov.uk/id/local-authority/32UC,Economic & Tourism,Other Miscellaneous Expenses,11/07/13,IJ00023951,1050,Peter Thorpe Financial Consultant, 
East Lindsey District Council,http://statistics.data.gov.uk/id/local-authority/32UC,Economic & Tourism,Other Miscellaneous Expenses,11/07/13,IJ00023995,938.94,Accord Group Limited, 
East Lindsey District Council,http://statistics.data.gov.uk/id/local-authority/32UC,Development Control,Professional & Contractors Fees,11/07/13,IJ00023930,2300,JBA Consulting, 
East Lindsey District Council,http://statistics.data.gov.uk/id/local-authority/32UC,Development Control,Agency Staff,11/07/13,IJ00023923,556.7,For Ward Planning Consultancy Ltd, 
East Lindsey District Council,http://statistics.data.gov.uk/id/local-authority/32UC,Economic & Tourism,Other Miscellaneous Expenses,11/07/13,IJ00023905,500,The Churches Conservation Trust, 
East Lindsey District Council,http://statistics.data.gov.uk/id/local-authority/32UC,Corporate Accounting,Other Miscellaneous Expenses,15/07/13,IJ00024086,4500,SECTOR TREASURY SERVICES LTD, 
East Lindsey District Council,http://statistics.data.gov.uk/id/local-authority/32UC,Neighbourhood Services,Professional & Contractors Fees,18/07/13,IJ00024181,692.9,SID DENNIS & SONS LTD, 
East Lindsey District Council,http://statistics.data.gov.uk/id/local-authority/32UC,Neighbourhood Services,Professional & Contractors Fees,18/07/13,IJ00024184,593.2,SID DENNIS & SONS LTD, 
East Lindsey District Council,http://statistics.data.gov.uk/id/local-authority/32UC,Theatre Manager,Grants and Contributions to Outside Bodies- No Service Recei,18/07/13,IJ00024076,594.72,F HUNT (COACH HIRE) LTD, 
East Lindsey District Council,http://statistics.data.gov.uk/id/local-authority/32UC,Leisure Operations,Materials and Consumables,18/07/13,IJ00024252,1345.76,STOWLIN LTD, 
East Lindsey District Council,http://statistics.data.gov.uk/id/local-authority/32UC,Leisure Operations,Furniture and Equipment,18/07/13,IJ00024107,587,CONTINENTAL SPORTS LTD, 
East Lindsey District Council,http://statistics.data.gov.uk/id/local-authority/32UC,TL Property,Other Miscellaneous Expenses,18/07/13,IJ00024048,631.84,VENDING ENTERPRISES, 
East Lindsey District Council,http://statistics.data.gov.uk/id/local-authority/32UC,"Performance, Governance & Commissioning",Other Miscellaneous Expenses,18/07/13,IJ00024063,538,LINCOLNSHIRE COUNTY COUNCIL, 
East Lindsey District Council,http://statistics.data.gov.uk/id/local-authority/32UC,Cultural & Related Services,Performers and Entertainers Fees,18/07/13,IJ00024083,5000,LINCOLNSHIRE COUNTY COUNCIL, 
East Lindsey District Council,http://statistics.data.gov.uk/id/local-authority/32UC,Customer Services Manager,Rent and Lease Payments,18/07/13,IJ00024162,1231.25,LINCOLNSHIRE COUNTY COUNCIL, 
East Lindsey District Council,http://statistics.data.gov.uk/id/local-authority/32UC,Leisure Operations,Buildings Maintenance - Programmed,18/07/13,IJ00024245,7463.9,DEVLIN DECORATORS LTD, 
East Lindsey District Council,http://statistics.data.gov.uk/id/local-authority/32UC,Revenues & Benefits,Other Miscellaneous Expenses,18/07/13,IJ00024150,3835.63,ALLPAY NET LTD, 
East Lindsey District Council,http://statistics.data.gov.uk/id/local-authority/32UC,Revenues & Benefits,Other Miscellaneous Expenses,18/07/13,IJ00024150,71.14,ALLPAY NET LTD, 
East Lindsey District Council,http://statistics.data.gov.uk/id/local-authority/32UC,TL Property,Furniture and Equipment,18/07/13,IJ00024142,1102.56,LIVES, 
East Lindsey District Council,http://statistics.data.gov.uk/id/local-authority/32UC,BALANCE  SHEET,Payroll Sacrifice Nursery Voucher,18/07/13,IJ00024209,3265,SODEXHO, 
East Lindsey District Council,http://statistics.data.gov.uk/id/local-authority/32UC,Theatre Manager,Gas,18/07/13,IJ00024251,1429.8,ESPO, 
East Lindsey District Council,http://statistics.data.gov.uk/id/local-authority/32UC,Leisure Operations,Gas,18/07/13,IJ00024251,2229.38,ESPO, 
East Lindsey District Council,http://statistics.data.gov.uk/id/local-authority/32UC,Leisure Operations,Gas,18/07/13,IJ00024251,13895.22,ESPO, 
East Lindsey District Council,http://statistics.data.gov.uk/id/local-authority/32UC,Leisure Operations,Gas,18/07/13,IJ00024251,11886.47,ESPO, 
East Lindsey District Council,http://statistics.data.gov.uk/id/local-authority/32UC,Leisure Operations,Gas,18/07/13,IJ00024251,136.02,ESPO, 
East Lindsey District Council,http://statistics.data.gov.uk/id/local-authority/32UC,Leisure Operations,Gas,18/07/13,IJ00024251,5287.42,ESPO, 
East Lindsey District Council,http://statistics.data.gov.uk/id/local-authority/32UC,Leisure Operations,Gas,18/07/13,IJ00024251,77.37,ESPO, 
East Lindsey District Council,http://statistics.data.gov.uk/id/local-authority/32UC,TL Property,Gas,18/07/13,IJ00024251,8.39,ESPO, 
East Lindsey District Council,http://statistics.data.gov.uk/id/local-authority/32UC,TL Property,Gas,18/07/13,IJ00024251,1185.71,ESPO, 
East Lindsey District Council,http://statistics.data.gov.uk/id/local-authority/32UC,TL Property,Gas,18/07/13,IJ00024251,79.05,ESPO, 
East Lindsey District Council,http://statistics.data.gov.uk/id/local-authority/32UC,TL Property,Gas,18/07/13,IJ00024251,1234.13,ESPO, 
East Lindsey District Council,http://statistics.data.gov.uk/id/local-authority/32UC,Economic & Tourism,Gas,18/07/13,IJ00024251,289.62,ESPO, 
East Lindsey District Council,http://statistics.data.gov.uk/id/local-authority/32UC,Leisure Operations,Gas,18/07/13,IJ00024251,280.99,ESPO, 
East Lindsey District Council,http://statistics.data.gov.uk/id/local-authority/32UC,Economic & Tourism,Gas,18/07/13,IJ00024251,308.86,ESPO, 
East Lindsey District Council,http://statistics.data.gov.uk/id/local-authority/32UC,TL Property,Gas,18/07/13,IJ00024251,295.92,ESPO, 
East Lindsey District Council,http://statistics.data.gov.uk/id/local-authority/32UC,Leisure Operations,Gas,18/07/13,IJ00024251,310.85,ESPO, 
East Lindsey District Council,http://statistics.data.gov.uk/id/local-authority/32UC,Leisure Operations,Gas,18/07/13,IJ00024251,234.72,ESPO, 
East Lindsey District Council,http://statistics.data.gov.uk/id/local-authority/32UC,TL Property,Gas,18/07/13,IJ00024251,190,ESPO, 
East Lindsey District Council,http://statistics.data.gov.uk/id/local-authority/32UC,TL Property,Gas,18/07/13,IJ00024251,366.55,ESPO, 
East Lindsey District Council,http://statistics.data.gov.uk/id/local-authority/32UC,Economic & Tourism,Gas,18/07/13,IJ00024251,36.09,ESPO, 
East Lindsey District Council,http://statistics.data.gov.uk/id/local-authority/32UC,Neighbourhood Services,Gas,18/07/13,IJ00024251,31.42,ESPO, 
East Lindsey District Council,http://statistics.data.gov.uk/id/local-authority/32UC,Economic & Tourism,Gas,18/07/13,IJ00024251,49.89,ESPO, 
East Lindsey District Council,http://statistics.data.gov.uk/id/local-authority/32UC,Leisure Operations,Gas,18/07/13,IJ00024251,26.04,ESPO, 
East Lindsey District Council,http://statistics.data.gov.uk/id/local-authority/32UC,Leisure Operations,Other Miscellaneous Expenses,18/07/13,IJ00024128,915.3,DEE BEE, 
East Lindsey District Council,http://statistics.data.gov.uk/id/local-authority/32UC,Leisure Operations,Purchase Of Goods For Resale,18/07/13,IJ00024128,41.37,DEE BEE, 
East Lindsey District Council,http://statistics.data.gov.uk/id/local-authority/32UC,Corporate Accounting,Other Miscellaneous Expenses,18/07/13,IJ00024262,19498.93,GE CORPORATE PAYMENT SERVICES, 
East Lindsey District Council,http://statistics.data.gov.uk/id/local-authority/32UC,Waste Services Manager,Agency Staff,18/07/13,IJ00024163,6871.14,CLOSE INVOICE FINANCE LTD, 
East Lindsey District Council,http://statistics.data.gov.uk/id/local-authority/32UC,Waste Services Manager,Agency Staff,18/07/13,IJ00024165,7275.02,CLOSE INVOICE FINANCE LTD, 
East Lindsey District Council,http://statistics.data.gov.uk/id/local-authority/32UC,Capital WIP,Works to Buildings (main Contractor),18/07/13,IJ00024191,19358,VERE BROS (CONTRACTORS) LTD, 
East Lindsey District Council,http://statistics.data.gov.uk/id/local-authority/32UC,Hsg Private Sector TL,Other Income,18/07/13,IJ00024253,-455.43,ANDREW BLADES BUILDING SERVICES LTD, 
East Lindsey District Council,http://statistics.data.gov.uk/id/local-authority/32UC,Hsg Private Sector TL,Grants and Contributions to Outside Bodies- No Service Recei,18/07/13,IJ00024253,5100.85,ANDREW BLADES BUILDING SERVICES LTD, 
East Lindsey District Council,http://statistics.data.gov.uk/id/local-authority/32UC,TL Property,Electricity,18/07/13,IJ00024205,1939.26,E.ON ENERGY, 
East Lindsey District Council,http://statistics.data.gov.uk/id/local-authority/32UC,Neighbourhood Services,Electricity,18/07/13,IJ00024205,6.4,E.ON ENERGY, 
East Lindsey District Council,http://statistics.data.gov.uk/id/local-authority/32UC,Enforcement Team Leader,Electricity,18/07/13,IJ00024205,6.09,E.ON ENERGY, 
East Lindsey District Council,http://statistics.data.gov.uk/id/local-authority/32UC,Enforcement Team Leader,Electricity,18/07/13,IJ00024205,19.12,E.ON ENERGY, 
East Lindsey District Council,http://statistics.data.gov.uk/id/local-authority/32UC,Enforcement Team Leader,Electricity,18/07/13,IJ00024205,17.43,E.ON ENERGY, 
East Lindsey District Council,http://statistics.data.gov.uk/id/local-authority/32UC,Enforcement Team Leader,Electricity,18/07/13,IJ00024205,19.23,E.ON ENERGY, 
East Lindsey District Council,http://statistics.data.gov.uk/id/local-authority/32UC,Enforcement Team Leader,Electricity,18/07/13,IJ00024205,39.57,E.ON ENERGY, 
East Lindsey District Council,http://statistics.data.gov.uk/id/local-authority/32UC,Enforcement Team Leader,Electricity,18/07/13,IJ00024205,8.2,E.ON ENERGY, 
East Lindsey District Council,http://statistics.data.gov.uk/id/local-authority/32UC,Enforcement Team Leader,Electricity,18/07/13,IJ00024205,13.19,E.ON ENERGY, 
East Lindsey District Council,http://statistics.data.gov.uk/id/local-authority/32UC,TL Property,Electricity,18/07/13,IJ00024206,537.56,E.ON ENERGY, 
East Lindsey District Council,http://statistics.data.gov.uk/id/local-authority/32UC,Neighbourhood Services,Electricity,18/07/13,IJ00024206,45.08,E.ON ENERGY, 
East Lindsey District Council,http://statistics.data.gov.uk/id/local-authority/32UC,Neighbourhood Services,Electricity,18/07/13,IJ00024206,12.14,E.ON ENERGY, 
East Lindsey District Council,http://statistics.data.gov.uk/id/local-authority/32UC,Enforcement Team Leader,Electricity,18/07/13,IJ00024206,7.79,E.ON ENERGY, 
East Lindsey District Council,http://statistics.data.gov.uk/id/local-authority/32UC,TL Property,Electricity,18/07/13,IJ00024206,6.07,E.ON ENERGY, 
East Lindsey District Council,http://statistics.data.gov.uk/id/local-authority/32UC,Enforcement Team Leader,Electricity,18/07/13,IJ00024206,6.07,E.ON ENERGY, 
East Lindsey District Council,http://statistics.data.gov.uk/id/local-authority/32UC,TL Property,Electricity,18/07/13,IJ00024206,12.14,E.ON ENERGY, 
East Lindsey District Council,http://statistics.data.gov.uk/id/local-authority/32UC,Environment Team Leader,Grants and Contributions to Outside Bodies- No Service Recei,18/07/13,IJ00024032,3800,PELL PLANT HIRE LTD, 
East Lindsey District Council,http://statistics.data.gov.uk/id/local-authority/32UC,Enforcement Team Leader,Payments to Bodies in Respect of Income Collected,18/07/13,IJ00024187,2294.98,INNES ENGLAND COMMERCIAL PROPERTY, 
East Lindsey District Council,http://statistics.data.gov.uk/id/local-authority/32UC,Development Control,Banking Charges,18/07/13,IJ00024157,4.08,CAPITA BUSINESS SERVICES LTD, 
East Lindsey District Council,http://statistics.data.gov.uk/id/local-authority/32UC,Corporate Accounting,Banking Charges,18/07/13,IJ00024157,822.89,CAPITA BUSINESS SERVICES LTD, 
East Lindsey District Council,http://statistics.data.gov.uk/id/local-authority/32UC,Corporate Management,Banking Charges,18/07/13,IJ00024157,35.04,CAPITA BUSINESS SERVICES LTD, 
East Lindsey District Council,http://statistics.data.gov.uk/id/local-authority/32UC,Corporate Management,Banking Charges,18/07/13,IJ00024157,2388.12,CAPITA BUSINESS SERVICES LTD, 
East Lindsey District Council,http://statistics.data.gov.uk/id/local-authority/32UC,Corporate Management,Banking Charges,18/07/13,IJ00024157,52.61,CAPITA BUSINESS SERVICES LTD, 
East Lindsey District Council,http://statistics.data.gov.uk/id/local-authority/32UC,Corporate Management,Banking Charges,18/07/13,IJ00024157,40.98,CAPITA BUSINESS SERVICES LTD, 
East Lindsey District Council,http://statistics.data.gov.uk/id/local-authority/32UC,TL Property,Buildings Maintenance - Programmed,18/07/13,IJ00024243,300,RIGGOTT & CO LTD, 
East Lindsey District Council,http://statistics.data.gov.uk/id/local-authority/32UC,Neighbourhood Services,Buildings Maintenance - Programmed,18/07/13,IJ00024243,300,RIGGOTT & CO LTD, 
East Lindsey District Council,http://statistics.data.gov.uk/id/local-authority/32UC,Leisure Operations,Buildings Maintenance - Programmed,18/07/13,IJ00024242,1107,AEGIS SERVICE & AFTERCARE LTD, 
East Lindsey District Council,http://statistics.data.gov.uk/id/local-authority/32UC,Development Control,Professional & Contractors Fees,18/07/13,IJ00024056,1620,GLOBE CONSULTANTS, 
East Lindsey District Council,http://statistics.data.gov.uk/id/local-authority/32UC,Enforcement Team Leader,Payments to Bodies in Respect of Income Collected,18/07/13,IJ00024189,69775.62,ZURICH ASSURANCE LTD, 
East Lindsey District Council,http://statistics.data.gov.uk/id/local-authority/32UC,Economic & Tourism,Telephones,18/07/13,IJ00024166,1801.1,LOGICAL TELECOM, 
East Lindsey District Council,http://statistics.data.gov.uk/id/local-authority/32UC,"Performance, Governance & Commissioning",Grants and Contributions to Outside Bodies- No Service Recei,18/07/13,IJ00024190,1740,LUDFORD & DISTRICT PLAYING FIELDS ASSOC, 
East Lindsey District Council,http://statistics.data.gov.uk/id/local-authority/32UC,Theatre Manager,Advertising - Events,18/07/13,IJ00024070,718,TAKE ONE MEDIA LTD, 
East Lindsey District Council,http://statistics.data.gov.uk/id/local-authority/32UC,Leisure Operations,Buildings Maintenance - Responsive,18/07/13,IJ00024196,1274.01,J TOMLINSON LTD, 
East Lindsey District Council,http://statistics.data.gov.uk/id/local-authority/32UC,"Performance, Governance & Commissioning",Grants and Contributions to Outside Bodies- No Service Recei,18/07/13,IJ00024141,500,UTTERBY PARISH COUNCIL, 
East Lindsey District Council,http://statistics.data.gov.uk/id/local-authority/32UC,Capital WIP,Buildings Maintenance - Programmed,18/07/13,IJ00024193,695,QUALSURV ENVIRONMENTAL SOLUTIONS LTD, 
East Lindsey District Council,http://statistics.data.gov.uk/id/local-authority/32UC,Economic & Tourism,Cleaning Contract,18/07/13,IJ00024030,533.9,EASY CLEAN MARSHCHAPEL LTD, 
East Lindsey District Council,http://statistics.data.gov.uk/id/local-authority/32UC,Economic & Tourism,Cleaning Contract,18/07/13,IJ00024029,1110.6,EASY CLEAN MARSHCHAPEL LTD, 
East Lindsey District Council,http://statistics.data.gov.uk/id/local-authority/32UC,Corporate Accounting,Professional & Contractors Fees,18/07/13,IJ00024094,898,KINGS ARMOURED SECURITY SERVICES LTD, 
East Lindsey District Council,http://statistics.data.gov.uk/id/local-authority/32UC,Leisure Operations,Furniture and Equipment,18/07/13,IJ00024108,720,DURANT CRICKET, 
East Lindsey District Council,http://statistics.data.gov.uk/id/local-authority/32UC,Information Technology,Computer Software Licence Costs,18/07/13,IJ00024164,3926.25,INFRASYS LTD, 
East Lindsey District Council,http://statistics.data.gov.uk/id/local-authority/32UC,Economic & Tourism,Other Miscellaneous Expenses,18/07/13,IJ00024080,691,WELLS & SONS MARQUEES LTD, 
East Lindsey District Council,http://statistics.data.gov.uk/id/local-authority/32UC,Enforcement Team Leader,Fuel & Oil,18/07/13,IJ00024081,145.39,AllStar Business Solutions Ltd, 
East Lindsey District Council,http://statistics.data.gov.uk/id/local-authority/32UC,Enforcement Team Leader,Fuel & Oil,18/07/13,IJ00024081,420.77,AllStar Business Solutions Ltd, 
East Lindsey District Council,http://statistics.data.gov.uk/id/local-authority/32UC,Theatre Manager,Fuel & Oil,18/07/13,IJ00024081,58.43,AllStar Business Solutions Ltd, 
East Lindsey District Council,http://statistics.data.gov.uk/id/local-authority/32UC,Neighbourhood Services,Fuel & Oil,18/07/13,IJ00024081,2486.68,AllStar Business Solutions Ltd, 
East Lindsey District Council,http://statistics.data.gov.uk/id/local-authority/32UC,Neighbourhood Services,Fuel & Oil,18/07/13,IJ00024081,1075.75,AllStar Business Solutions Ltd, 
East Lindsey District Council,http://statistics.data.gov.uk/id/local-authority/32UC,TL Property,Fuel & Oil,18/07/13,IJ00024081,62.73,AllStar Business Solutions Ltd, 
East Lindsey District Council,http://statistics.data.gov.uk/id/local-authority/32UC,Hsg Advice & Homelessness TL,Fuel & Oil,18/07/13,IJ00024081,66.68,AllStar Business Solutions Ltd, 
East Lindsey District Council,http://statistics.data.gov.uk/id/local-authority/32UC,Neighbourhood Services,Buildings Maintenance - Programmed,18/07/13,IJ00024248,65,Elecheck EST Limited, 
East Lindsey District Council,http://statistics.data.gov.uk/id/local-authority/32UC,Neighbourhood Services,Buildings Maintenance - Programmed,18/07/13,IJ00024248,139.84,Elecheck EST Limited, 
East Lindsey District Council,http://statistics.data.gov.uk/id/local-authority/32UC,Neighbourhood Services,Buildings Maintenance - Programmed,18/07/13,IJ00024248,117.76,Elecheck EST Limited, 
East Lindsey District Council,http://statistics.data.gov.uk/id/local-authority/32UC,Neighbourhood Services,Buildings Maintenance - Programmed,18/07/13,IJ00024248,95.68,Elecheck EST Limited, 
East Lindsey District Council,http://statistics.data.gov.uk/id/local-authority/32UC,Neighbourhood Services,Buildings Maintenance - Programmed,18/07/13,IJ00024248,65,Elecheck EST Limited, 
East Lindsey District Council,http://statistics.data.gov.uk/id/local-authority/32UC,Neighbourhood Services,Buildings Maintenance - Programmed,18/07/13,IJ00024248,66.25,Elecheck EST Limited, 
East Lindsey District Council,http://statistics.data.gov.uk/id/local-authority/32UC,Neighbourhood Services,Buildings Maintenance - Programmed,18/07/13,IJ00024248,88.32,Elecheck EST Limited, 
East Lindsey District Council,http://statistics.data.gov.uk/id/local-authority/32UC,Neighbourhood Services,Buildings Maintenance - Programmed,18/07/13,IJ00024248,95.68,Elecheck EST Limited, 
East Lindsey District Council,http://statistics.data.gov.uk/id/local-authority/32UC,Neighbourhood Services,Buildings Maintenance - Programmed,18/07/13,IJ00024248,103.04,Elecheck EST Limited, 
East Lindsey District Council,http://statistics.data.gov.uk/id/local-authority/32UC,Theatre Manager,Buildings Maintenance - Programmed,18/07/13,IJ00024248,140,Elecheck EST Limited, 
East Lindsey District Council,http://statistics.data.gov.uk/id/local-authority/32UC,Neighbourhood Services,Buildings Maintenance - Programmed,18/07/13,IJ00024248,264.95,Elecheck EST Limited, 
East Lindsey District Council,http://statistics.data.gov.uk/id/local-authority/32UC,Neighbourhood Services,Buildings Maintenance - Programmed,18/07/13,IJ00024248,138.6,Elecheck EST Limited, 
East Lindsey District Council,http://statistics.data.gov.uk/id/local-authority/32UC,Neighbourhood Services,Buildings Maintenance - Programmed,18/07/13,IJ00024248,161.92,Elecheck EST Limited, 
East Lindsey District Council,http://statistics.data.gov.uk/id/local-authority/32UC,Neighbourhood Services,Buildings Maintenance - Programmed,18/07/13,IJ00024248,95.68,Elecheck EST Limited, 
East Lindsey District Council,http://statistics.data.gov.uk/id/local-authority/32UC,Neighbourhood Services,Buildings Maintenance - Programmed,18/07/13,IJ00024248,132.48,Elecheck EST Limited, 
East Lindsey District Council,http://statistics.data.gov.uk/id/local-authority/32UC,Neighbourhood Services,Buildings Maintenance - Programmed,18/07/13,IJ00024248,125.12,Elecheck EST Limited, 
East Lindsey District Council,http://statistics.data.gov.uk/id/local-authority/32UC,Neighbourhood Services,Buildings Maintenance - Programmed,18/07/13,IJ00024248,66.24,Elecheck EST Limited, 
East Lindsey District Council,http://statistics.data.gov.uk/id/local-authority/32UC,Environment Team Leader,Other Private Contractors,18/07/13,IJ00024105,4290,Needham Powell Walker, 
East Lindsey District Council,http://statistics.data.gov.uk/id/local-authority/32UC,Development Control,Agency Staff,18/07/13,IJ00024084,569.75,For Ward Planning Consultancy Ltd, 
East Lindsey District Council,http://statistics.data.gov.uk/id/local-authority/32UC,Economic & Tourism,Buildings Maintenance - Responsive,18/07/13,IJ00024210,1156.5,Sleaford Electrical and Refrigeration Company Ltd, 
East Lindsey District Council,http://statistics.data.gov.uk/id/local-authority/32UC,Economic & Tourism,Buildings Maintenance - Responsive,18/07/13,IJ00024211,1980.05,Sleaford Electrical and Refrigeration Company Ltd, 
East Lindsey District Council,http://statistics.data.gov.uk/id/local-authority/32UC,Economic & Tourism,Buildings Maintenance - Responsive,18/07/13,IJ00024212,624,Sleaford Electrical and Refrigeration Company Ltd, 
East Lindsey District Council,http://statistics.data.gov.uk/id/local-authority/32UC,Economic & Tourism,Buildings Maintenance - Programmed,18/07/13,IJ00024214,740,Sleaford Electrical and Refrigeration Company Ltd, 
East Lindsey District Council,http://statistics.data.gov.uk/id/local-authority/32UC,"Performance, Governance & Commissioning",Grants and Contributions to Outside Bodies- No Service Recei,18/07/13,IJ00024055,638,Saltfleetby Queens Diamond Jubilee, 
East Lindsey District Council,http://statistics.data.gov.uk/id/local-authority/32UC,Theatre Manager,Performers and Entertainers Fees,18/07/13,IJ00024035,856,MM Sports Consultants, 
East Lindsey District Council,http://statistics.data.gov.uk/id/local-authority/32UC,Economic & Tourism,Grants and Contributions to Outside Bodies- No Service Recei,18/07/13,IJ00024144,1750,Richard Bucknall Management, 
East Lindsey District Council,http://statistics.data.gov.uk/id/local-authority/32UC,Economic & Tourism,Advertising - Events,18/07/13,IJ00024145,2950,Calverton Finance Limited, 
East Lindsey District Council,http://statistics.data.gov.uk/id/local-authority/32UC,Neighbourhood Services,Maintenance,18/07/13,IJ00024147,534.32,Fix Auto Skegness, 
East Lindsey District Council,http://statistics.data.gov.uk/id/local-authority/32UC,Neighbourhood Services,Professional & Contractors Fees,25/07/13,IJ00024288,295,SID DENNIS & SONS LTD, 
East Lindsey District Council,http://statistics.data.gov.uk/id/local-authority/32UC,Neighbourhood Services,Professional & Contractors Fees,25/07/13,IJ00024288,220,SID DENNIS & SONS LTD, 
East Lindsey District Council,http://statistics.data.gov.uk/id/local-authority/32UC,Corporate Management,Subscriptions to Organisations and Other Bodies,25/07/13,IJ00024284,2095,NORTH KESTEVEN DISTRICT COUNCIL, 
East Lindsey District Council,http://statistics.data.gov.uk/id/local-authority/32UC,Hsg Private Sector TL,Other Income,25/07/13,IJ00024351,-657.26,SIBJON BUILDERS, 
East Lindsey District Council,http://statistics.data.gov.uk/id/local-authority/32UC,Hsg Private Sector TL,Grants and Contributions to Outside Bodies- No Service Recei,25/07/13,IJ00024351,7361.3,SIBJON BUILDERS, 
East Lindsey District Council,http://statistics.data.gov.uk/id/local-authority/32UC,Neighbourhood Services,Materials and Consumables,25/07/13,IJ00024461,872.5,STOWLIN LTD, 
East Lindsey District Council,http://statistics.data.gov.uk/id/local-authority/32UC,Neighbourhood Services,Materials and Consumables,25/07/13,IJ00024462,1123.9,STOWLIN LTD, 
East Lindsey District Council,http://statistics.data.gov.uk/id/local-authority/32UC,Building Control,Telephones,25/07/13,IJ00024294,23.49,VODAFONE CORPORATE LIMITED, 
East Lindsey District Council,http://statistics.data.gov.uk/id/local-authority/32UC,Information Technology,Telephones,25/07/13,IJ00024294,23.49,VODAFONE CORPORATE LIMITED, 
East Lindsey District Council,http://statistics.data.gov.uk/id/local-authority/32UC,Information Technology,Telephones,25/07/13,IJ00024294,1518.25,VODAFONE CORPORATE LIMITED, 
East Lindsey District Council,http://statistics.data.gov.uk/id/local-authority/32UC,Information Technology,Telephones,25/07/13,IJ00024295,2983.78,VODAFONE CORPORATE LIMITED, 
East Lindsey District Council,http://statistics.data.gov.uk/id/local-authority/32UC,Waste Services Manager,Telephones,25/07/13,IJ00024298,132.9,VODAFONE CORPORATE LIMITED, 
East Lindsey District Council,http://statistics.data.gov.uk/id/local-authority/32UC,Communications Manager,Telephones,25/07/13,IJ00024298,47.5,VODAFONE CORPORATE LIMITED, 
East Lindsey District Council,http://statistics.data.gov.uk/id/local-authority/32UC,Theatre Manager,Telephones,25/07/13,IJ00024298,20.93,VODAFONE CORPORATE LIMITED, 
East Lindsey District Council,http://statistics.data.gov.uk/id/local-authority/32UC,Theatre Manager,Telephones,25/07/13,IJ00024298,49.27,VODAFONE CORPORATE LIMITED, 
East Lindsey District Council,http://statistics.data.gov.uk/id/local-authority/32UC,Development Control,Telephones,25/07/13,IJ00024298,18.13,VODAFONE CORPORATE LIMITED, 
East Lindsey District Council,http://statistics.data.gov.uk/id/local-authority/32UC,Enforcement Team Leader,Telephones,25/07/13,IJ00024298,23.12,VODAFONE CORPORATE LIMITED, 
East Lindsey District Council,http://statistics.data.gov.uk/id/local-authority/32UC,Enforcement Team Leader,Telephones,25/07/13,IJ00024298,16.7,VODAFONE CORPORATE LIMITED, 
East Lindsey District Council,http://statistics.data.gov.uk/id/local-authority/32UC,Enforcement Team Leader,Telephones,25/07/13,IJ00024298,38.68,VODAFONE CORPORATE LIMITED, 
East Lindsey District Council,http://statistics.data.gov.uk/id/local-authority/32UC,Building Control,Telephones,25/07/13,IJ00024298,18.27,VODAFONE CORPORATE LIMITED, 
East Lindsey District Council,http://statistics.data.gov.uk/id/local-authority/32UC,Hsg Private Sector TL,Telephones,25/07/13,IJ00024298,6.58,VODAFONE CORPORATE LIMITED, 
East Lindsey District Council,http://statistics.data.gov.uk/id/local-authority/32UC,Enforcement Team Leader,Telephones,25/07/13,IJ00024298,78.04,VODAFONE CORPORATE LIMITED, 
East Lindsey District Council,http://statistics.data.gov.uk/id/local-authority/32UC,Cultural & Related Services,Telephones,25/07/13,IJ00024298,38.71,VODAFONE CORPORATE LIMITED, 
East Lindsey District Council,http://statistics.data.gov.uk/id/local-authority/32UC,Hsg Advice & Homelessness TL,Telephones,25/07/13,IJ00024298,20.21,VODAFONE CORPORATE LIMITED, 
East Lindsey District Council,http://statistics.data.gov.uk/id/local-authority/32UC,Housing Support TL,Telephones,25/07/13,IJ00024298,349.47,VODAFONE CORPORATE LIMITED, 
East Lindsey District Council,http://statistics.data.gov.uk/id/local-authority/32UC,Hsg Private Sector TL,Telephones,25/07/13,IJ00024298,68.06,VODAFONE CORPORATE LIMITED, 
East Lindsey District Council,http://statistics.data.gov.uk/id/local-authority/32UC,Hsg Advice & Homelessness TL,Telephones,25/07/13,IJ00024298,31.24,VODAFONE CORPORATE LIMITED, 
East Lindsey District Council,http://statistics.data.gov.uk/id/local-authority/32UC,Waste Services Manager,Telephones,25/07/13,IJ00024298,42.38,VODAFONE CORPORATE LIMITED, 
East Lindsey District Council,http://statistics.data.gov.uk/id/local-authority/32UC,Building Control,Telephones,25/07/13,IJ00024298,215.76,VODAFONE CORPORATE LIMITED, 
East Lindsey District Council,http://statistics.data.gov.uk/id/local-authority/32UC,Housing Support TL,Telephones,25/07/13,IJ00024298,182.72,VODAFONE CORPORATE LIMITED, 
East Lindsey District Council,http://statistics.data.gov.uk/id/local-authority/32UC,Economic & Tourism,Telephones,25/07/13,IJ00024298,2.81,VODAFONE CORPORATE LIMITED, 
East Lindsey District Council,http://statistics.data.gov.uk/id/local-authority/32UC,Corporate Management,Telephones,25/07/13,IJ00024298,70.58,VODAFONE CORPORATE LIMITED, 
East Lindsey District Council,http://statistics.data.gov.uk/id/local-authority/32UC,Commercial Team Leader,Telephones,25/07/13,IJ00024298,125.7,VODAFONE CORPORATE LIMITED, 
East Lindsey District Council,http://statistics.data.gov.uk/id/local-authority/32UC,Leisure Operations,Telephones,25/07/13,IJ00024298,7.81,VODAFONE CORPORATE LIMITED, 
East Lindsey District Council,http://statistics.data.gov.uk/id/local-authority/32UC,Leisure Operations,Telephones,25/07/13,IJ00024298,14.74,VODAFONE CORPORATE LIMITED, 
East Lindsey District Council,http://statistics.data.gov.uk/id/local-authority/32UC,Leisure Operations,Telephones,25/07/13,IJ00024298,30.23,VODAFONE CORPORATE LIMITED, 
East Lindsey District Council,http://statistics.data.gov.uk/id/local-authority/32UC,Leisure Operations,Telephones,25/07/13,IJ00024298,9.38,VODAFONE CORPORATE LIMITED, 
East Lindsey District Council,http://statistics.data.gov.uk/id/local-authority/32UC,Neighbourhood Services,Telephones,25/07/13,IJ00024298,96.71,VODAFONE CORPORATE LIMITED, 
East Lindsey District Council,http://statistics.data.gov.uk/id/local-authority/32UC,TL Property,Telephones,25/07/13,IJ00024298,103.52,VODAFONE CORPORATE LIMITED, 
East Lindsey District Council,http://statistics.data.gov.uk/id/local-authority/32UC,Neighbourhood Services,Telephones,25/07/13,IJ00024298,34.62,VODAFONE CORPORATE LIMITED, 
East Lindsey District Council,http://statistics.data.gov.uk/id/local-authority/32UC,Economic & Tourism,Telephones,25/07/13,IJ00024298,18.42,VODAFONE CORPORATE LIMITED, 
East Lindsey District Council,http://statistics.data.gov.uk/id/local-authority/32UC,Cultural & Related Services,Telephones,25/07/13,IJ00024298,15.44,VODAFONE CORPORATE LIMITED, 
East Lindsey District Council,http://statistics.data.gov.uk/id/local-authority/32UC,"Performance, Governance & Commissioning",Telephones,25/07/13,IJ00024298,168.63,VODAFONE CORPORATE LIMITED, 
East Lindsey District Council,http://statistics.data.gov.uk/id/local-authority/32UC,Enforcement Team Leader,Telephones,25/07/13,IJ00024298,6.75,VODAFONE CORPORATE LIMITED, 
East Lindsey District Council,http://statistics.data.gov.uk/id/local-authority/32UC,Enforcement Team Leader,Telephones,25/07/13,IJ00024298,6.75,VODAFONE CORPORATE LIMITED, 
East Lindsey District Council,http://statistics.data.gov.uk/id/local-authority/32UC,Environment Team Leader,Telephones,25/07/13,IJ00024298,134.59,VODAFONE CORPORATE LIMITED, 
East Lindsey District Council,http://statistics.data.gov.uk/id/local-authority/32UC,Cultural & Related Services,Telephones,25/07/13,IJ00024298,28.32,VODAFONE CORPORATE LIMITED, 
East Lindsey District Council,http://statistics.data.gov.uk/id/local-authority/32UC,Cultural & Related Services,Telephones,25/07/13,IJ00024298,9.81,VODAFONE CORPORATE LIMITED, 
East Lindsey District Council,http://statistics.data.gov.uk/id/local-authority/32UC,Cultural & Related Services,Telephones,25/07/13,IJ00024298,35.81,VODAFONE CORPORATE LIMITED, 
East Lindsey District Council,http://statistics.data.gov.uk/id/local-authority/32UC,Cultural & Related Services,Telephones,25/07/13,IJ00024298,4.5,VODAFONE CORPORATE LIMITED, 
East Lindsey District Council,http://statistics.data.gov.uk/id/local-authority/32UC,Hsg Private Sector TL,Telephones,25/07/13,IJ00024298,17.2,VODAFONE CORPORATE LIMITED, 
East Lindsey District Council,http://statistics.data.gov.uk/id/local-authority/32UC,Housing Support TL,Telephones,25/07/13,IJ00024298,15.31,VODAFONE CORPORATE LIMITED, 
East Lindsey District Council,http://statistics.data.gov.uk/id/local-authority/32UC,"Performance, Governance & Commissioning",Telephones,25/07/13,IJ00024298,18.79,VODAFONE CORPORATE LIMITED, 
East Lindsey District Council,http://statistics.data.gov.uk/id/local-authority/32UC,Planning & Housing Policy Manager,Telephones,25/07/13,IJ00024298,31.52,VODAFONE CORPORATE LIMITED, 
East Lindsey District Council,http://statistics.data.gov.uk/id/local-authority/32UC,Economic & Tourism,Telephones,25/07/13,IJ00024298,83.74,VODAFONE CORPORATE LIMITED, 
East Lindsey District Council,http://statistics.data.gov.uk/id/local-authority/32UC,Economic & Tourism,Telephones,25/07/13,IJ00024298,2.85,VODAFONE CORPORATE LIMITED, 
East Lindsey District Council,http://statistics.data.gov.uk/id/local-authority/32UC,Cultural & Related Services,Telephones,25/07/13,IJ00024298,136.85,VODAFONE CORPORATE LIMITED, 
East Lindsey District Council,http://statistics.data.gov.uk/id/local-authority/32UC,Cultural & Related Services,Telephones,25/07/13,IJ00024298,5.62,VODAFONE CORPORATE LIMITED, 
East Lindsey District Council,http://statistics.data.gov.uk/id/local-authority/32UC,Neighbourhood Services,Telephones,25/07/13,IJ00024298,77.61,VODAFONE CORPORATE LIMITED, 
East Lindsey District Council,http://statistics.data.gov.uk/id/local-authority/32UC,Neighbourhood Services,Telephones,25/07/13,IJ00024298,44.11,VODAFONE CORPORATE LIMITED, 
East Lindsey District Council,http://statistics.data.gov.uk/id/local-authority/32UC,Neighbourhood Services,Telephones,25/07/13,IJ00024298,145.18,VODAFONE CORPORATE LIMITED, 
East Lindsey District Council,http://statistics.data.gov.uk/id/local-authority/32UC,Theatre Manager,Telephones,25/07/13,IJ00024298,2.81,VODAFONE CORPORATE LIMITED, 
East Lindsey District Council,http://statistics.data.gov.uk/id/local-authority/32UC,Corporate Management,Telephones,25/07/13,IJ00024298,27.65,VODAFONE CORPORATE LIMITED, 
East Lindsey District Council,http://statistics.data.gov.uk/id/local-authority/32UC,Enforcement Team Leader,Telephones,25/07/13,IJ00024298,13.5,VODAFONE CORPORATE LIMITED, 
East Lindsey District Council,http://statistics.data.gov.uk/id/local-authority/32UC,Enforcement Team Leader,Telephones,25/07/13,IJ00024298,6.75,VODAFONE CORPORATE LIMITED, 
East Lindsey District Council,http://statistics.data.gov.uk/id/local-authority/32UC,Enforcement Team Leader,Telephones,25/07/13,IJ00024298,6.75,VODAFONE CORPORATE LIMITED, 
East Lindsey District Council,http://statistics.data.gov.uk/id/local-authority/32UC,Enforcement Team Leader,Telephones,25/07/13,IJ00024298,33.75,VODAFONE CORPORATE LIMITED, 
East Lindsey District Council,http://statistics.data.gov.uk/id/local-authority/32UC,Enforcement Team Leader,Telephones,25/07/13,IJ00024298,6.75,VODAFONE CORPORATE LIMITED, 
East Lindsey District Council,http://statistics.data.gov.uk/id/local-authority/32UC,Enforcement Team Leader,Telephones,25/07/13,IJ00024298,6.75,VODAFONE CORPORATE LIMITED, 
East Lindsey District Council,http://statistics.data.gov.uk/id/local-authority/32UC,Enforcement Team Leader,Telephones,25/07/13,IJ00024298,20.25,VODAFONE CORPORATE LIMITED, 
East Lindsey District Council,http://statistics.data.gov.uk/id/local-authority/32UC,Enforcement Team Leader,Telephones,25/07/13,IJ00024298,6.75,VODAFONE CORPORATE LIMITED, 
East Lindsey District Council,http://statistics.data.gov.uk/id/local-authority/32UC,Enforcement Team Leader,Telephones,25/07/13,IJ00024298,13.5,VODAFONE CORPORATE LIMITED, 
East Lindsey District Council,http://statistics.data.gov.uk/id/local-authority/32UC,Enforcement Team Leader,Telephones,25/07/13,IJ00024298,6.75,VODAFONE CORPORATE LIMITED, 
East Lindsey District Council,http://statistics.data.gov.uk/id/local-authority/32UC,Enforcement Team Leader,Telephones,25/07/13,IJ00024298,6.75,VODAFONE CORPORATE LIMITED, 
East Lindsey District Council,http://statistics.data.gov.uk/id/local-authority/32UC,Enforcement Team Leader,Telephones,25/07/13,IJ00024298,6.75,VODAFONE CORPORATE LIMITED, 
East Lindsey District Council,http://statistics.data.gov.uk/id/local-authority/32UC,Enforcement Team Leader,Telephones,25/07/13,IJ00024298,6.75,VODAFONE CORPORATE LIMITED, 
East Lindsey District Council,http://statistics.data.gov.uk/id/local-authority/32UC,Enforcement Team Leader,Telephones,25/07/13,IJ00024298,13.5,VODAFONE CORPORATE LIMITED, 
East Lindsey District Council,http://statistics.data.gov.uk/id/local-authority/32UC,Enforcement Team Leader,Telephones,25/07/13,IJ00024298,6.75,VODAFONE CORPORATE LIMITED, 
East Lindsey District Council,http://statistics.data.gov.uk/id/local-authority/32UC,Enforcement Team Leader,Telephones,25/07/13,IJ00024298,6.75,VODAFONE CORPORATE LIMITED, 
East Lindsey District Council,http://statistics.data.gov.uk/id/local-authority/32UC,Enforcement Team Leader,Telephones,25/07/13,IJ00024298,6.75,VODAFONE CORPORATE LIMITED, 
East Lindsey District Council,http://statistics.data.gov.uk/id/local-authority/32UC,Enforcement Team Leader,Telephones,25/07/13,IJ00024298,6.75,VODAFONE CORPORATE LIMITED, 
East Lindsey District Council,http://statistics.data.gov.uk/id/local-authority/32UC,Enforcement Team Leader,Telephones,25/07/13,IJ00024298,13.5,VODAFONE CORPORATE LIMITED, 
East Lindsey District Council,http://statistics.data.gov.uk/id/local-authority/32UC,Enforcement Team Leader,Telephones,25/07/13,IJ00024298,13.5,VODAFONE CORPORATE LIMITED, 
East Lindsey District Council,http://statistics.data.gov.uk/id/local-authority/32UC,Enforcement Team Leader,Telephones,25/07/13,IJ00024298,6.75,VODAFONE CORPORATE LIMITED, 
East Lindsey District Council,http://statistics.data.gov.uk/id/local-authority/32UC,Enforcement Team Leader,Telephones,25/07/13,IJ00024298,6.75,VODAFONE CORPORATE LIMITED, 
East Lindsey District Council,http://statistics.data.gov.uk/id/local-authority/32UC,Enforcement Team Leader,Telephones,25/07/13,IJ00024298,20.25,VODAFONE CORPORATE LIMITED, 
East Lindsey District Council,http://statistics.data.gov.uk/id/local-authority/32UC,Enforcement Team Leader,Telephones,25/07/13,IJ00024298,13.5,VODAFONE CORPORATE LIMITED, 
East Lindsey District Council,http://statistics.data.gov.uk/id/local-authority/32UC,Enforcement Team Leader,Telephones,25/07/13,IJ00024298,6.75,VODAFONE CORPORATE LIMITED, 
East Lindsey District Council,http://statistics.data.gov.uk/id/local-authority/32UC,Enforcement Team Leader,Telephones,25/07/13,IJ00024298,13.5,VODAFONE CORPORATE LIMITED, 
East Lindsey District Council,http://statistics.data.gov.uk/id/local-authority/32UC,Enforcement Team Leader,Telephones,25/07/13,IJ00024298,13.5,VODAFONE CORPORATE LIMITED, 
East Lindsey District Council,http://statistics.data.gov.uk/id/local-authority/32UC,Enforcement Team Leader,Telephones,25/07/13,IJ00024298,6.75,VODAFONE CORPORATE LIMITED, 
East Lindsey District Council,http://statistics.data.gov.uk/id/local-authority/32UC,Enforcement Team Leader,Telephones,25/07/13,IJ00024298,20.25,VODAFONE CORPORATE LIMITED, 
East Lindsey District Council,http://statistics.data.gov.uk/id/local-authority/32UC,Enforcement Team Leader,Telephones,25/07/13,IJ00024298,6.75,VODAFONE CORPORATE LIMITED, 
East Lindsey District Council,http://statistics.data.gov.uk/id/local-authority/32UC,Enforcement Team Leader,Telephones,25/07/13,IJ00024298,13.5,VODAFONE CORPORATE LIMITED, 
East Lindsey District Council,http://statistics.data.gov.uk/id/local-authority/32UC,Enforcement Team Leader,Telephones,25/07/13,IJ00024298,6.75,VODAFONE CORPORATE LIMITED, 
East Lindsey District Council,http://statistics.data.gov.uk/id/local-authority/32UC,Enforcement Team Leader,Telephones,25/07/13,IJ00024298,13.5,VODAFONE CORPORATE LIMITED, 
East Lindsey District Council,http://statistics.data.gov.uk/id/local-authority/32UC,Enforcement Team Leader,Telephones,25/07/13,IJ00024298,13.5,VODAFONE CORPORATE LIMITED, 
East Lindsey District Council,http://statistics.data.gov.uk/id/local-authority/32UC,Enforcement Team Leader,Telephones,25/07/13,IJ00024298,6.75,VODAFONE CORPORATE LIMITED, 
East Lindsey District Council,http://statistics.data.gov.uk/id/local-authority/32UC,Enforcement Team Leader,Telephones,25/07/13,IJ00024298,6.75,VODAFONE CORPORATE LIMITED, 
East Lindsey District Council,http://statistics.data.gov.uk/id/local-authority/32UC,Enforcement Team Leader,Telephones,25/07/13,IJ00024298,6.75,VODAFONE CORPORATE LIMITED, 
East Lindsey District Council,http://statistics.data.gov.uk/id/local-authority/32UC,Enforcement Team Leader,Telephones,25/07/13,IJ00024298,6.75,VODAFONE CORPORATE LIMITED, 
East Lindsey District Council,http://statistics.data.gov.uk/id/local-authority/32UC,Enforcement Team Leader,Telephones,25/07/13,IJ00024298,6.75,VODAFONE CORPORATE LIMITED, 
East Lindsey District Council,http://statistics.data.gov.uk/id/local-authority/32UC,Enforcement Team Leader,Telephones,25/07/13,IJ00024298,6.75,VODAFONE CORPORATE LIMITED, 
East Lindsey District Council,http://statistics.data.gov.uk/id/local-authority/32UC,Enforcement Team Leader,Telephones,25/07/13,IJ00024298,6.75,VODAFONE CORPORATE LIMITED, 
East Lindsey District Council,http://statistics.data.gov.uk/id/local-authority/32UC,Enforcement Team Leader,Telephones,25/07/13,IJ00024298,13.5,VODAFONE CORPORATE LIMITED, 
East Lindsey District Council,http://statistics.data.gov.uk/id/local-authority/32UC,Enforcement Team Leader,Telephones,25/07/13,IJ00024298,6.75,VODAFONE CORPORATE LIMITED, 
East Lindsey District Council,http://statistics.data.gov.uk/id/local-authority/32UC,Enforcement Team Leader,Telephones,25/07/13,IJ00024298,6.75,VODAFONE CORPORATE LIMITED, 
East Lindsey District Council,http://statistics.data.gov.uk/id/local-authority/32UC,Enforcement Team Leader,Telephones,25/07/13,IJ00024298,6.75,VODAFONE CORPORATE LIMITED, 
East Lindsey District Council,http://statistics.data.gov.uk/id/local-authority/32UC,Enforcement Team Leader,Telephones,25/07/13,IJ00024298,6.75,VODAFONE CORPORATE LIMITED, 
East Lindsey District Council,http://statistics.data.gov.uk/id/local-authority/32UC,Enforcement Team Leader,Telephones,25/07/13,IJ00024298,6.75,VODAFONE CORPORATE LIMITED, 
East Lindsey District Council,http://statistics.data.gov.uk/id/local-authority/32UC,Enforcement Team Leader,Telephones,25/07/13,IJ00024298,6.75,VODAFONE CORPORATE LIMITED, 
East Lindsey District Council,http://statistics.data.gov.uk/id/local-authority/32UC,Enforcement Team Leader,Telephones,25/07/13,IJ00024298,6.75,VODAFONE CORPORATE LIMITED, 
East Lindsey District Council,http://statistics.data.gov.uk/id/local-authority/32UC,Enforcement Team Leader,Telephones,25/07/13,IJ00024298,6.75,VODAFONE CORPORATE LIMITED, 
East Lindsey District Council,http://statistics.data.gov.uk/id/local-authority/32UC,Enforcement Team Leader,Telephones,25/07/13,IJ00024298,6.75,VODAFONE CORPORATE LIMITED, 
East Lindsey District Council,http://statistics.data.gov.uk/id/local-authority/32UC,Leisure Operations,Purchase Of Goods For Resale,25/07/13,IJ00024465,859.45,ASA AWARDS CENTRE, 
East Lindsey District Council,http://statistics.data.gov.uk/id/local-authority/32UC,Customer Services Manager,Rent and Lease Payments,25/07/13,IJ00024377,1667.47,LINCOLNSHIRE COUNTY COUNCIL, 
East Lindsey District Council,http://statistics.data.gov.uk/id/local-authority/32UC,Information Technology,Telephones,25/07/13,IJ00024282,4625.62,LINCOLNSHIRE COUNTY COUNCIL, 
East Lindsey District Council,http://statistics.data.gov.uk/id/local-authority/32UC,Neighbourhood Services,Fuel & Oil,25/07/13,IJ00024280,1437.4,WATSON PETROLEUM LTD, 
East Lindsey District Council,http://statistics.data.gov.uk/id/local-authority/32UC,Waste Services Manager,Fuel & Oil,25/07/13,IJ00024504,14239.76,WATSON PETROLEUM LTD, 
East Lindsey District Council,http://statistics.data.gov.uk/id/local-authority/32UC,BALANCE  SHEET,Payroll-Unison,25/07/13,IJ00024467,1586.1,UNISON, 
East Lindsey District Council,http://statistics.data.gov.uk/id/local-authority/32UC,Leisure Operations,Electricity,25/07/13,IJ00024460,2552.76,SOUTHERN ELECTRIC PLC, 
East Lindsey District Council,http://statistics.data.gov.uk/id/local-authority/32UC,Leisure Operations,Electricity,25/07/13,IJ00024448,3986.85,SOUTHERN ELECTRIC PLC, 
East Lindsey District Council,http://statistics.data.gov.uk/id/local-authority/32UC,Neighbourhood Services,Electricity,25/07/13,IJ00024448,1230.01,SOUTHERN ELECTRIC PLC, 
East Lindsey District Council,http://statistics.data.gov.uk/id/local-authority/32UC,TL Property,Electricity,25/07/13,IJ00024448,21.96,SOUTHERN ELECTRIC PLC, 
East Lindsey District Council,http://statistics.data.gov.uk/id/local-authority/32UC,Economic & Tourism,Electricity,25/07/13,IJ00024448,839.38,SOUTHERN ELECTRIC PLC, 
East Lindsey District Council,http://statistics.data.gov.uk/id/local-authority/32UC,TL Property,Electricity,25/07/13,IJ00024448,34.47,SOUTHERN ELECTRIC PLC, 
East Lindsey District Council,http://statistics.data.gov.uk/id/local-authority/32UC,Neighbourhood Services,Electricity,25/07/13,IJ00024448,223.14,SOUTHERN ELECTRIC PLC, 
East Lindsey District Council,http://statistics.data.gov.uk/id/local-authority/32UC,TL Property,Electricity,25/07/13,IJ00024448,247.44,SOUTHERN ELECTRIC PLC, 
East Lindsey District Council,http://statistics.data.gov.uk/id/local-authority/32UC,Neighbourhood Services,Electricity,25/07/13,IJ00024448,230.88,SOUTHERN ELECTRIC PLC, 
East Lindsey District Council,http://statistics.data.gov.uk/id/local-authority/32UC,TL Property,Electricity,25/07/13,IJ00024448,1147.03,SOUTHERN ELECTRIC PLC, 
East Lindsey District Council,http://statistics.data.gov.uk/id/local-authority/32UC,Economic & Tourism,Electricity,25/07/13,IJ00024448,753.41,SOUTHERN ELECTRIC PLC, 
East Lindsey District Council,http://statistics.data.gov.uk/id/local-authority/32UC,Theatre Manager,Electricity,25/07/13,IJ00024434,899.44,SOUTHERN ELECTRIC PLC, 
East Lindsey District Council,http://statistics.data.gov.uk/id/local-authority/32UC,Leisure Operations,Electricity,25/07/13,IJ00024434,1204.91,SOUTHERN ELECTRIC PLC, 
East Lindsey District Council,http://statistics.data.gov.uk/id/local-authority/32UC,Neighbourhood Services,Electricity,25/07/13,IJ00024434,302.15,SOUTHERN ELECTRIC PLC, 
East Lindsey District Council,http://statistics.data.gov.uk/id/local-authority/32UC,Neighbourhood Services,Electricity,25/07/13,IJ00024434,244.87,SOUTHERN ELECTRIC PLC, 
East Lindsey District Council,http://statistics.data.gov.uk/id/local-authority/32UC,TL Property,Electricity,25/07/13,IJ00024434,3494.55,SOUTHERN ELECTRIC PLC, 
East Lindsey District Council,http://statistics.data.gov.uk/id/local-authority/32UC,Theatre Manager,Electricity,25/07/13,IJ00024434,75.53,SOUTHERN ELECTRIC PLC, 
East Lindsey District Council,http://statistics.data.gov.uk/id/local-authority/32UC,TL Property,Electricity,25/07/13,IJ00024434,257.44,SOUTHERN ELECTRIC PLC, 
East Lindsey District Council,http://statistics.data.gov.uk/id/local-authority/32UC,TL Property,Electricity,25/07/13,IJ00024434,119.67,SOUTHERN ELECTRIC PLC, 
East Lindsey District Council,http://statistics.data.gov.uk/id/local-authority/32UC,TL Property,Electricity,25/07/13,IJ00024434,256.17,SOUTHERN ELECTRIC PLC, 
East Lindsey District Council,http://statistics.data.gov.uk/id/local-authority/32UC,Leisure Operations,Electricity,25/07/13,IJ00024434,492.95,SOUTHERN ELECTRIC PLC, 
East Lindsey District Council,http://statistics.data.gov.uk/id/local-authority/32UC,Customer Services Manager,Electricity,25/07/13,IJ00024413,397.5,SOUTHERN ELECTRIC PLC, 
East Lindsey District Council,http://statistics.data.gov.uk/id/local-authority/32UC,TL Property,Electricity,25/07/13,IJ00024413,-71.18,SOUTHERN ELECTRIC PLC, 
East Lindsey District Council,http://statistics.data.gov.uk/id/local-authority/32UC,Neighbourhood Services,Electricity,25/07/13,IJ00024413,797.9,SOUTHERN ELECTRIC PLC, 
East Lindsey District Council,http://statistics.data.gov.uk/id/local-authority/32UC,TL Property,Electricity,25/07/13,IJ00024413,209.5,SOUTHERN ELECTRIC PLC, 
East Lindsey District Council,http://statistics.data.gov.uk/id/local-authority/32UC,TL Property,Electricity,25/07/13,IJ00024413,199.47,SOUTHERN ELECTRIC PLC, 
East Lindsey District Council,http://statistics.data.gov.uk/id/local-authority/32UC,Neighbourhood Services,Electricity,25/07/13,IJ00024413,141.66,SOUTHERN ELECTRIC PLC, 
East Lindsey District Council,http://statistics.data.gov.uk/id/local-authority/32UC,Neighbourhood Services,Electricity,25/07/13,IJ00024413,78.31,SOUTHERN ELECTRIC PLC, 
East Lindsey District Council,http://statistics.data.gov.uk/id/local-authority/32UC,Enforcement Team Leader,Electricity,25/07/13,IJ00024413,28.6,SOUTHERN ELECTRIC PLC, 
East Lindsey District Council,http://statistics.data.gov.uk/id/local-authority/32UC,Economic & Tourism,Electricity,25/07/13,IJ00024422,6930.52,SOUTHERN ELECTRIC PLC, 
East Lindsey District Council,http://statistics.data.gov.uk/id/local-authority/32UC,Leisure Operations,Electricity,25/07/13,IJ00024422,507.78,SOUTHERN ELECTRIC PLC, 
East Lindsey District Council,http://statistics.data.gov.uk/id/local-authority/32UC,Neighbourhood Services,Electricity,25/07/13,IJ00024422,957.46,SOUTHERN ELECTRIC PLC, 
East Lindsey District Council,http://statistics.data.gov.uk/id/local-authority/32UC,Neighbourhood Services,Electricity,25/07/13,IJ00024422,487.48,SOUTHERN ELECTRIC PLC, 
East Lindsey District Council,http://statistics.data.gov.uk/id/local-authority/32UC,Neighbourhood Services,Electricity,25/07/13,IJ00024422,927.14,SOUTHERN ELECTRIC PLC, 
East Lindsey District Council,http://statistics.data.gov.uk/id/local-authority/32UC,Economic & Tourism,Electricity,25/07/13,IJ00024422,418.45,SOUTHERN ELECTRIC PLC, 
East Lindsey District Council,http://statistics.data.gov.uk/id/local-authority/32UC,Neighbourhood Services,Electricity,25/07/13,IJ00024422,116.44,SOUTHERN ELECTRIC PLC, 
East Lindsey District Council,http://statistics.data.gov.uk/id/local-authority/32UC,Neighbourhood Services,Electricity,25/07/13,IJ00024422,246.51,SOUTHERN ELECTRIC PLC, 
East Lindsey District Council,http://statistics.data.gov.uk/id/local-authority/32UC,Neighbourhood Services,Electricity,25/07/13,IJ00024422,46.85,SOUTHERN ELECTRIC PLC, 
East Lindsey District Council,http://statistics.data.gov.uk/id/local-authority/32UC,Leisure Operations,Electricity,25/07/13,IJ00024422,5849.93,SOUTHERN ELECTRIC PLC, 
East Lindsey District Council,http://statistics.data.gov.uk/id/local-authority/32UC,Neighbourhood Services,Buildings Maintenance - Responsive,25/07/13,IJ00024451,548.45,POOLSIDE LEISURE, 
East Lindsey District Council,http://statistics.data.gov.uk/id/local-authority/32UC,Collection Fund,Payment to NNDR Pool,25/07/13,IJ00024321,2384412,DEPARTMENT FOR COMMUNITIES AND LOCAL, 
East Lindsey District Council,http://statistics.data.gov.uk/id/local-authority/32UC,Economic & Tourism,Other Income,25/07/13,IJ00024384,31376.76,LINCOLNSHIRE CHAMBER OF COMMERCE &, 
East Lindsey District Council,http://statistics.data.gov.uk/id/local-authority/32UC,Leisure Operations,Grounds Maintenance Recharge,25/07/13,IJ00024496,595,VEOLIA ES (UK) LIMITED, 
East Lindsey District Council,http://statistics.data.gov.uk/id/local-authority/32UC,Leisure Operations,Grounds Maintenance Recharge,25/07/13,IJ00024497,600.78,VEOLIA ES (UK) LIMITED, 
East Lindsey District Council,http://statistics.data.gov.uk/id/local-authority/32UC,Waste Services Manager,Agency Staff,25/07/13,IJ00024333,7060.1,CLOSE INVOICE FINANCE LTD, 
East Lindsey District Council,http://statistics.data.gov.uk/id/local-authority/32UC,Hsg Private Sector TL,Other Income,25/07/13,IJ00024347,-612.29,HUMBERSTONE BUILDING MAINTENANCE, 
East Lindsey District Council,http://statistics.data.gov.uk/id/local-authority/32UC,Hsg Private Sector TL,Grants and Contributions to Outside Bodies- No Service Recei,25/07/13,IJ00024347,6857.63,HUMBERSTONE BUILDING MAINTENANCE, 
East Lindsey District Council,http://statistics.data.gov.uk/id/local-authority/32UC,Waste Services Manager,Insurance,25/07/13,IJ00024458,197.06,TRAVELERS INSURANCE COMPANY LIMITED, 
East Lindsey District Council,http://statistics.data.gov.uk/id/local-authority/32UC,Enforcement Team Leader,Insurance,25/07/13,IJ00024458,6600,TRAVELERS INSURANCE COMPANY LIMITED, 
East Lindsey District Council,http://statistics.data.gov.uk/id/local-authority/32UC,Waste Services Manager,Insurance,25/07/13,IJ00024458,1500,TRAVELERS INSURANCE COMPANY LIMITED, 
East Lindsey District Council,http://statistics.data.gov.uk/id/local-authority/32UC,Economic & Tourism,Insurance,25/07/13,IJ00024458,1216.35,TRAVELERS INSURANCE COMPANY LIMITED, 
East Lindsey District Council,http://statistics.data.gov.uk/id/local-authority/32UC,Leisure Operations,Insurance,25/07/13,IJ00024458,2133.5,TRAVELERS INSURANCE COMPANY LIMITED, 
East Lindsey District Council,http://statistics.data.gov.uk/id/local-authority/32UC,Leisure Operations,Insurance,25/07/13,IJ00024458,225,TRAVELERS INSURANCE COMPANY LIMITED, 
East Lindsey District Council,http://statistics.data.gov.uk/id/local-authority/32UC,Building Control,Other Income,25/07/13,IJ00024274,205710,NORTH EAST LINCOLNSHIRE COUNCIL, 
East Lindsey District Council,http://statistics.data.gov.uk/id/local-authority/32UC,Hsg Private Sector TL,Grants and Contributions to Outside Bodies- No Service Recei,25/07/13,IJ00024349,6450,ANDREW BLADES BUILDING SERVICES LTD, 
East Lindsey District Council,http://statistics.data.gov.uk/id/local-authority/32UC,Information Technology,Computer Software Purchase,25/07/13,IJ00024498,3203.9,APPSENSE, 
East Lindsey District Council,http://statistics.data.gov.uk/id/local-authority/32UC,Information Technology,Computer Software Licence Costs,25/07/13,IJ00024291,18770,IHS (GLOBAL) LTD, 
East Lindsey District Council,http://statistics.data.gov.uk/id/local-authority/32UC,BALANCE  SHEET,Payroll-Gmbatu,25/07/13,IJ00024470,659.82,GMB NATIONAL ADMINISTRATION UNIT, 
East Lindsey District Council,http://statistics.data.gov.uk/id/local-authority/32UC,Hsg Advice & Homelessness TL,Grants and Contributions to Outside Bodies- No Service Recei,25/07/13,IJ00024325,575.05,WEST LINDSEY DISTRICT COUNCIL, 
East Lindsey District Council,http://statistics.data.gov.uk/id/local-authority/32UC,Enforcement Team Leader,Payments to Bodies in Respect of Income Collected,25/07/13,IJ00024383,2372.5,INNES ENGLAND COMMERCIAL PROPERTY, 
East Lindsey District Council,http://statistics.data.gov.uk/id/local-authority/32UC,Hsg Private Sector TL,Grants and Contributions to Outside Bodies- No Service Recei,25/07/13,IJ00024345,4175,DOLPHIN MOBILITY EAST MIDLANDS, 
East Lindsey District Council,http://statistics.data.gov.uk/id/local-authority/32UC,Neighbourhood Services,Agency Staff,25/07/13,IJ00024272,1237.92,THE WORKSHOP (WISBECH) LIMITED, 
East Lindsey District Council,http://statistics.data.gov.uk/id/local-authority/32UC,Neighbourhood Services,Agency Staff,25/07/13,IJ00024272,1237.93,THE WORKSHOP (WISBECH) LIMITED, 
East Lindsey District Council,http://statistics.data.gov.uk/id/local-authority/32UC,Leisure Operations,Professional & Contractors Fees,25/07/13,IJ00024270,752.09,AQUA VITA CAFE, 
East Lindsey District Council,http://statistics.data.gov.uk/id/local-authority/32UC,Cultural & Related Services,Professional & Contractors Fees,25/07/13,IJ00024302,1085.1,AQUA VITA CAFE, 
East Lindsey District Council,http://statistics.data.gov.uk/id/local-authority/32UC,Cultural & Related Services,Voluntary associations,25/07/13,IJ00024305,6610.2,WOODHALL SPA COTTAGE MUSEUM, 
East Lindsey District Council,http://statistics.data.gov.uk/id/local-authority/32UC,Cultural & Related Services,Voluntary associations,25/07/13,IJ00024493,9580.98,WOODHALL SPA COTTAGE MUSEUM, 
East Lindsey District Council,http://statistics.data.gov.uk/id/local-authority/32UC,Theatre Manager,Purchase Of Goods For Resale,25/07/13,IJ00024365,735.39,MOLSON COORS BREWERS LTD, 
East Lindsey District Council,http://statistics.data.gov.uk/id/local-authority/32UC,"Performance, Governance & Commissioning",Grants and Contributions to Outside Bodies- No Service Recei,25/07/13,IJ00024306,936,CHAPEL ST LEONARDS VILLAGE HALL, 
East Lindsey District Council,http://statistics.data.gov.uk/id/local-authority/32UC,Theatre Manager,Performers and Entertainers Fees,25/07/13,IJ00024364,5750,DEREK BLOCK CONCERT PROMOTIONS LTD, 
East Lindsey District Council,http://statistics.data.gov.uk/id/local-authority/32UC,Hsg Private Sector TL,Other Income,25/07/13,IJ00024346,-109.14,THM CONSTRUCTION, 
East Lindsey District Council,http://statistics.data.gov.uk/id/local-authority/32UC,Hsg Private Sector TL,Grants and Contributions to Outside Bodies- No Service Recei,25/07/13,IJ00024346,1222.35,THM CONSTRUCTION, 
East Lindsey District Council,http://statistics.data.gov.uk/id/local-authority/32UC,Hsg Private Sector TL,Other Income,25/07/13,IJ00024348,-588.34,THM CONSTRUCTION, 
East Lindsey District Council,http://statistics.data.gov.uk/id/local-authority/32UC,Hsg Private Sector TL,Grants and Contributions to Outside Bodies- No Service Recei,25/07/13,IJ00024348,6589.37,THM CONSTRUCTION, 
East Lindsey District Council,http://statistics.data.gov.uk/id/local-authority/32UC,Neighbourhood Services,Water and Sewerage Charges,25/07/13,IJ00024414,840.99,ANGLIAN WATER, 
East Lindsey District Council,http://statistics.data.gov.uk/id/local-authority/32UC,Neighbourhood Services,Water and Sewerage Charges,25/07/13,IJ00024415,1121.33,ANGLIAN WATER, 
East Lindsey District Council,http://statistics.data.gov.uk/id/local-authority/32UC,Neighbourhood Services,Water and Sewerage Charges,25/07/13,IJ00024417,764.99,ANGLIAN WATER, 
East Lindsey District Council,http://statistics.data.gov.uk/id/local-authority/32UC,TL Property,Water and Sewerage Charges,25/07/13,IJ00024417,72.19,ANGLIAN WATER, 
East Lindsey District Council,http://statistics.data.gov.uk/id/local-authority/32UC,Neighbourhood Services,Water and Sewerage Charges,25/07/13,IJ00024423,637.73,ANGLIAN WATER, 
East Lindsey District Council,http://statistics.data.gov.uk/id/local-authority/32UC,Leisure Operations,Water and Sewerage Charges,25/07/13,IJ00024429,2226.71,ANGLIAN WATER, 
East Lindsey District Council,http://statistics.data.gov.uk/id/local-authority/32UC,Neighbourhood Services,Water and Sewerage Charges,25/07/13,IJ00024430,1231.79,ANGLIAN WATER, 
East Lindsey District Council,http://statistics.data.gov.uk/id/local-authority/32UC,Economic & Tourism,Water and Sewerage Charges,25/07/13,IJ00024431,7023.93,ANGLIAN WATER, 
East Lindsey District Council,http://statistics.data.gov.uk/id/local-authority/32UC,Leisure Operations,Water and Sewerage Charges,25/07/13,IJ00024432,905.59,ANGLIAN WATER, 
East Lindsey District Council,http://statistics.data.gov.uk/id/local-authority/32UC,Neighbourhood Services,Water and Sewerage Charges,25/07/13,IJ00024433,1418.5,ANGLIAN WATER, 
East Lindsey District Council,http://statistics.data.gov.uk/id/local-authority/32UC,Corporate Accounting,External Audit Fees,25/07/13,IJ00024484,16865,KPMG LLP, 
East Lindsey District Council,http://statistics.data.gov.uk/id/local-authority/32UC,Hsg Private Sector TL,Other Income,25/07/13,IJ00024350,-526.18,MARK DONNER LTD, 
East Lindsey District Council,http://statistics.data.gov.uk/id/local-authority/32UC,Hsg Private Sector TL,Grants and Contributions to Outside Bodies- No Service Recei,25/07/13,IJ00024350,5893.28,MARK DONNER LTD, 
East Lindsey District Council,http://statistics.data.gov.uk/id/local-authority/32UC,Economic & Tourism,Grants and Contributions to Outside Bodies- No Service Recei,25/07/13,IJ00024387,2500,INTECHNOLOGY PLC, 
East Lindsey District Council,http://statistics.data.gov.uk/id/local-authority/32UC,Neighbourhood Services,Buildings Maintenance - Responsive,25/07/13,IJ00024446,600,BLUESTONE SALES, 
East Lindsey District Council,http://statistics.data.gov.uk/id/local-authority/32UC,Neighbourhood Services,Buildings Maintenance - Responsive,25/07/13,IJ00024447,500,BLUESTONE SALES, 
East Lindsey District Council,http://statistics.data.gov.uk/id/local-authority/32UC,Waste Services Manager,Telephones,25/07/13,IJ00024300,11.3,DAISY COMMUNICATIONS LTD, 
East Lindsey District Council,http://statistics.data.gov.uk/id/local-authority/32UC,Enforcement Team Leader,Other agencies,25/07/13,IJ00024300,22.34,DAISY COMMUNICATIONS LTD, 
East Lindsey District Council,http://statistics.data.gov.uk/id/local-authority/32UC,Customer Services Manager,Telephones,25/07/13,IJ00024300,142.87,DAISY COMMUNICATIONS LTD, 
East Lindsey District Council,http://statistics.data.gov.uk/id/local-authority/32UC,Theatre Manager,Telephones,25/07/13,IJ00024300,113.01,DAISY COMMUNICATIONS LTD, 
East Lindsey District Council,http://statistics.data.gov.uk/id/local-authority/32UC,Hsg Private Sector TL,Telephones,25/07/13,IJ00024300,11.05,DAISY COMMUNICATIONS LTD, 
East Lindsey District Council,http://statistics.data.gov.uk/id/local-authority/32UC,Enforcement Team Leader,Telephones,25/07/13,IJ00024300,109.99,DAISY COMMUNICATIONS LTD, 
East Lindsey District Council,http://statistics.data.gov.uk/id/local-authority/32UC,Building Control,Telephones,25/07/13,IJ00024300,55.02,DAISY COMMUNICATIONS LTD, 
East Lindsey District Council,http://statistics.data.gov.uk/id/local-authority/32UC,Economic & Tourism,Grants and Contributions to Outside Bodies- No Service Recei,25/07/13,IJ00024300,25.87,DAISY COMMUNICATIONS LTD, 
East Lindsey District Council,http://statistics.data.gov.uk/id/local-authority/32UC,Housing Support TL,Telephones,25/07/13,IJ00024300,11.01,DAISY COMMUNICATIONS LTD, 
East Lindsey District Council,http://statistics.data.gov.uk/id/local-authority/32UC,Economic & Tourism,Telephones,25/07/13,IJ00024300,44.87,DAISY COMMUNICATIONS LTD, 
East Lindsey District Council,http://statistics.data.gov.uk/id/local-authority/32UC,Corporate Management,Telephones,25/07/13,IJ00024300,2703.28,DAISY COMMUNICATIONS LTD, 
East Lindsey District Council,http://statistics.data.gov.uk/id/local-authority/32UC,Commercial Team Leader,Telephones,25/07/13,IJ00024300,11.01,DAISY COMMUNICATIONS LTD, 
East Lindsey District Council,http://statistics.data.gov.uk/id/local-authority/32UC,TL Property,Telephones,25/07/13,IJ00024300,11.01,DAISY COMMUNICATIONS LTD, 
East Lindsey District Council,http://statistics.data.gov.uk/id/local-authority/32UC,Information Technology,Telephones,25/07/13,IJ00024300,83.65,DAISY COMMUNICATIONS LTD, 
East Lindsey District Council,http://statistics.data.gov.uk/id/local-authority/32UC,Information Technology,Telephones,25/07/13,IJ00024300,21.98,DAISY COMMUNICATIONS LTD, 
East Lindsey District Council,http://statistics.data.gov.uk/id/local-authority/32UC,Leisure Operations,Telephones,25/07/13,IJ00024300,63.45,DAISY COMMUNICATIONS LTD, 
East Lindsey District Council,http://statistics.data.gov.uk/id/local-authority/32UC,Economic & Tourism,Telephones,25/07/13,IJ00024300,432.58,DAISY COMMUNICATIONS LTD, 
East Lindsey District Council,http://statistics.data.gov.uk/id/local-authority/32UC,Economic & Tourism,Telephones,25/07/13,IJ00024300,416.79,DAISY COMMUNICATIONS LTD, 
East Lindsey District Council,http://statistics.data.gov.uk/id/local-authority/32UC,Economic & Tourism,Telephones,25/07/13,IJ00024300,325.72,DAISY COMMUNICATIONS LTD, 
East Lindsey District Council,http://statistics.data.gov.uk/id/local-authority/32UC,Leisure Operations,Telephones,25/07/13,IJ00024300,35.36,DAISY COMMUNICATIONS LTD, 
East Lindsey District Council,http://statistics.data.gov.uk/id/local-authority/32UC,Leisure Operations,Telephones,25/07/13,IJ00024300,10.99,DAISY COMMUNICATIONS LTD, 
East Lindsey District Council,http://statistics.data.gov.uk/id/local-authority/32UC,Leisure Operations,Telephones,25/07/13,IJ00024300,10.99,DAISY COMMUNICATIONS LTD, 
East Lindsey District Council,http://statistics.data.gov.uk/id/local-authority/32UC,Leisure Operations,Telephones,25/07/13,IJ00024300,57.15,DAISY COMMUNICATIONS LTD, 
East Lindsey District Council,http://statistics.data.gov.uk/id/local-authority/32UC,TL Property,Telephones,25/07/13,IJ00024300,10.99,DAISY COMMUNICATIONS LTD, 
East Lindsey District Council,http://statistics.data.gov.uk/id/local-authority/32UC,TL Property,Telephones,25/07/13,IJ00024300,11.07,DAISY COMMUNICATIONS LTD, 
East Lindsey District Council,http://statistics.data.gov.uk/id/local-authority/32UC,TL Property,Telephones,25/07/13,IJ00024300,22.31,DAISY COMMUNICATIONS LTD, 
East Lindsey District Council,http://statistics.data.gov.uk/id/local-authority/32UC,TL Property,Telephones,25/07/13,IJ00024300,10.99,DAISY COMMUNICATIONS LTD, 
East Lindsey District Council,http://statistics.data.gov.uk/id/local-authority/32UC,TL Property,Telephones,25/07/13,IJ00024300,50.1,DAISY COMMUNICATIONS LTD, 
East Lindsey District Council,http://statistics.data.gov.uk/id/local-authority/32UC,Leisure Operations,Telephones,25/07/13,IJ00024300,23.02,DAISY COMMUNICATIONS LTD, 
East Lindsey District Council,http://statistics.data.gov.uk/id/local-authority/32UC,Leisure Operations,Telephones,25/07/13,IJ00024300,38.12,DAISY COMMUNICATIONS LTD, 
East Lindsey District Council,http://statistics.data.gov.uk/id/local-authority/32UC,Leisure Operations,Telephones,25/07/13,IJ00024300,10.99,DAISY COMMUNICATIONS LTD, 
East Lindsey District Council,http://statistics.data.gov.uk/id/local-authority/32UC,Neighbourhood Services,Telephones,25/07/13,IJ00024300,14.54,DAISY COMMUNICATIONS LTD, 
East Lindsey District Council,http://statistics.data.gov.uk/id/local-authority/32UC,Neighbourhood Services,Telephones,25/07/13,IJ00024300,10.99,DAISY COMMUNICATIONS LTD, 
East Lindsey District Council,http://statistics.data.gov.uk/id/local-authority/32UC,Neighbourhood Services,Telephones,25/07/13,IJ00024300,22.82,DAISY COMMUNICATIONS LTD, 
East Lindsey District Council,http://statistics.data.gov.uk/id/local-authority/32UC,TL Property,Telephones,25/07/13,IJ00024300,13.21,DAISY COMMUNICATIONS LTD, 
East Lindsey District Council,http://statistics.data.gov.uk/id/local-authority/32UC,TL Property,Telephones,25/07/13,IJ00024300,22.2,DAISY COMMUNICATIONS LTD, 
East Lindsey District Council,http://statistics.data.gov.uk/id/local-authority/32UC,TL Property,Telephones,25/07/13,IJ00024300,21.98,DAISY COMMUNICATIONS LTD, 
East Lindsey District Council,http://statistics.data.gov.uk/id/local-authority/32UC,Theatre Manager,Telephones,25/07/13,IJ00024300,12.95,DAISY COMMUNICATIONS LTD, 
East Lindsey District Council,http://statistics.data.gov.uk/id/local-authority/32UC,TL Property,Telephones,25/07/13,IJ00024300,33.84,DAISY COMMUNICATIONS LTD, 
East Lindsey District Council,http://statistics.data.gov.uk/id/local-authority/32UC,Corporate Management,Telephones,25/07/13,IJ00024300,10.99,DAISY COMMUNICATIONS LTD, 
East Lindsey District Council,http://statistics.data.gov.uk/id/local-authority/32UC,Leisure Operations,Telephones,25/07/13,IJ00024300,152.84,DAISY COMMUNICATIONS LTD, 
East Lindsey District Council,http://statistics.data.gov.uk/id/local-authority/32UC,Economic & Tourism,Other Miscellaneous Expenses,25/07/13,IJ00024366,5460,NEW MIND INTERNET CONSULTANCY LTD, 
East Lindsey District Council,http://statistics.data.gov.uk/id/local-authority/32UC,Cultural & Related Services,Professional & Contractors Fees,25/07/13,IJ00024303,975,GREEN LIGHT TRAFFIC MANAGEMENT, 
East Lindsey District Council,http://statistics.data.gov.uk/id/local-authority/32UC,Hsg Private Sector TL,Grants and Contributions to Outside Bodies- No Service Recei,25/07/13,IJ00024343,4578.46,ANDREW WRISDALE BUILDING CONTRACTOR, 
East Lindsey District Council,http://statistics.data.gov.uk/id/local-authority/32UC,Economic & Tourism,Grants and Contributions to Outside Bodies- No Service Recei,25/07/13,IJ00024372,500,RIBA EAST MIDLANDS, 
East Lindsey District Council,http://statistics.data.gov.uk/id/local-authority/32UC,Development Control,Professional & Contractors Fees,25/07/13,IJ00024281,4250,FPCR ENVIRONMENT AND DESIGN LTD, 
East Lindsey District Council,http://statistics.data.gov.uk/id/local-authority/32UC,Development Control,Professional & Contractors Fees,25/07/13,IJ00024290,3200,FPCR ENVIRONMENT AND DESIGN LTD, 
East Lindsey District Council,http://statistics.data.gov.uk/id/local-authority/32UC,TL Property,Professional & Contractors Fees,25/07/13,IJ00024278,562.5,Louth Education Community Interest Company, 
East Lindsey District Council,http://statistics.data.gov.uk/id/local-authority/32UC,Economic & Tourism,Grants and Contributions to Outside Bodies- No Service Recei,25/07/13,IJ00024374,787.5,Global Tourism Solutions UK Ltd, 
East Lindsey District Council,http://statistics.data.gov.uk/id/local-authority/32UC,BALANCE  SHEET,Lincolnshire Credit Union,25/07/13,IJ00024469,835,Lincolnshire Credit Union Ltd, 
East Lindsey District Council,http://statistics.data.gov.uk/id/local-authority/32UC,Capital WIP,Demolition/Site Clearance Costs,25/07/13,IJ00024292,6032,GBM Demolition, 
East Lindsey District Council,http://statistics.data.gov.uk/id/local-authority/32UC,"Performance, Governance & Commissioning",Grants and Contributions to Outside Bodies- No Service Recei,25/07/13,IJ00024379,700.61,Alford Sports Hall Assn, 
East Lindsey District Council,http://statistics.data.gov.uk/id/local-authority/32UC,Enforcement Team Leader,Fuel & Oil,25/07/13,IJ00024381,152.16,AllStar Business Solutions Ltd, 
East Lindsey District Council,http://statistics.data.gov.uk/id/local-authority/32UC,Enforcement Team Leader,Fuel & Oil,25/07/13,IJ00024381,275.97,AllStar Business Solutions Ltd, 
East Lindsey District Council,http://statistics.data.gov.uk/id/local-authority/32UC,Theatre Manager,Fuel & Oil,25/07/13,IJ00024381,56.63,AllStar Business Solutions Ltd, 
East Lindsey District Council,http://statistics.data.gov.uk/id/local-authority/32UC,Neighbourhood Services,Fuel & Oil,25/07/13,IJ00024381,3074.35,AllStar Business Solutions Ltd, 
East Lindsey District Council,http://statistics.data.gov.uk/id/local-authority/32UC,Neighbourhood Services,Fuel & Oil,25/07/13,IJ00024381,70.84,AllStar Business Solutions Ltd, 
East Lindsey District Council,http://statistics.data.gov.uk/id/local-authority/32UC,Neighbourhood Services,Fuel & Oil,25/07/13,IJ00024381,1203.04,AllStar Business Solutions Ltd, 
East Lindsey District Council,http://statistics.data.gov.uk/id/local-authority/32UC,Hsg Advice & Homelessness TL,Fuel & Oil,25/07/13,IJ00024381,75.13,AllStar Business Solutions Ltd, 
East Lindsey District Council,http://statistics.data.gov.uk/id/local-authority/32UC,Development Control,Agency Staff,25/07/13,IJ00024279,557.6,For Ward Planning Consultancy Ltd, 
East Lindsey District Council,http://statistics.data.gov.uk/id/local-authority/32UC,Development Control,Agency Staff,25/07/13,IJ00024502,558.5,For Ward Planning Consultancy Ltd, 
East Lindsey District Council,http://statistics.data.gov.uk/id/local-authority/32UC,Hsg Private Sector TL,Grants and Contributions to Outside Bodies- No Service Recei,25/07/13,IJ00024342,600,GF Design Services, 
East Lindsey District Council,http://statistics.data.gov.uk/id/local-authority/32UC,Economic & Tourism,Grants and Contributions to Outside Bodies- No Service Recei,25/07/13,IJ00024485,5254.32,OLD NICKS TAVERN, 
East Lindsey District Council,http://statistics.data.gov.uk/id/local-authority/32UC,Theatre Manager,Gas,31/07/13,IJ00024580,896.22,ESPO, 
East Lindsey District Council,http://statistics.data.gov.uk/id/local-authority/32UC,Leisure Operations,Gas,31/07/13,IJ00024580,1459.39,ESPO, 
East Lindsey District Council,http://statistics.data.gov.uk/id/local-authority/32UC,Leisure Operations,Gas,31/07/13,IJ00024580,9277.17,ESPO, 
East Lindsey District Council,http://statistics.data.gov.uk/id/local-authority/32UC,Leisure Operations,Gas,31/07/13,IJ00024580,76.47,ESPO, 
East Lindsey District Council,http://statistics.data.gov.uk/id/local-authority/32UC,Leisure Operations,Gas,31/07/13,IJ00024580,5248.37,ESPO, 
East Lindsey District Council,http://statistics.data.gov.uk/id/local-authority/32UC,Leisure Operations,Gas,31/07/13,IJ00024580,50.7,ESPO, 
East Lindsey District Council,http://statistics.data.gov.uk/id/local-authority/32UC,TL Property,Gas,31/07/13,IJ00024580,11.74,ESPO, 
East Lindsey District Council,http://statistics.data.gov.uk/id/local-authority/32UC,TL Property,Gas,31/07/13,IJ00024580,498.95,ESPO, 
East Lindsey District Council,http://statistics.data.gov.uk/id/local-authority/32UC,TL Property,Gas,31/07/13,IJ00024580,60.22,ESPO, 
East Lindsey District Council,http://statistics.data.gov.uk/id/local-authority/32UC,TL Property,Gas,31/07/13,IJ00024580,406.03,ESPO, 
East Lindsey District Council,http://statistics.data.gov.uk/id/local-authority/32UC,Economic & Tourism,Gas,31/07/13,IJ00024580,141.23,ESPO, 
East Lindsey District Council,http://statistics.data.gov.uk/id/local-authority/32UC,Leisure Operations,Gas,31/07/13,IJ00024580,200.68,ESPO, 
East Lindsey District Council,http://statistics.data.gov.uk/id/local-authority/32UC,Economic & Tourism,Gas,31/07/13,IJ00024580,148.81,ESPO, 
East Lindsey District Council,http://statistics.data.gov.uk/id/local-authority/32UC,TL Property,Gas,31/07/13,IJ00024580,178.07,ESPO, 
East Lindsey District Council,http://statistics.data.gov.uk/id/local-authority/32UC,Leisure Operations,Gas,31/07/13,IJ00024580,120.38,ESPO, 
East Lindsey District Council,http://statistics.data.gov.uk/id/local-authority/32UC,TL Property,Gas,31/07/13,IJ00024580,86.66,ESPO, 
East Lindsey District Council,http://statistics.data.gov.uk/id/local-authority/32UC,TL Property,Gas,31/07/13,IJ00024580,179.53,ESPO, 
East Lindsey District Council,http://statistics.data.gov.uk/id/local-authority/32UC,Economic & Tourism,Gas,31/07/13,IJ00024580,30.08,ESPO, 
East Lindsey District Council,http://statistics.data.gov.uk/id/local-authority/32UC,Neighbourhood Services,Gas,31/07/13,IJ00024580,27.5,ESPO, 
East Lindsey District Council,http://statistics.data.gov.uk/id/local-authority/32UC,Economic & Tourism,Gas,31/07/13,IJ00024580,36.72,ESPO, 
East Lindsey District Council,http://statistics.data.gov.uk/id/local-authority/32UC,Leisure Operations,Gas,31/07/13,IJ00024580,25.2,ESPO, 
